Cogmind - Beta 15 @@@ ROGUE MODE // 2025.07.24 @ 17:45:12 Player: saltine Result: Escaped! Performance ------------- Evolutions (9) 4500 Regions Visited (29) 5800 Robots Destroyed (648) 3240 Value Destroyed (36741) 36741 Prototype IDs (71) 1420 Alien Tech Used (0) 0 Bonus (26518) 26518 TOTAL SCORE: 78219 Bonus ------- Triggered High Security 500 High Alert Combat Kills 13599 Follower Combat Kills 2155 Entered Garrisons 1800 Used RIF Installer 5000 Aligned with FarCom 300 Scanned by Researcher 500 Win 3000 Friendly Fire -336 Cogmind --------- Core Integrity 1455/1600 Matter 300/300 Energy 663/680 System Corruption 15% Temperature Cool (9) Movement Treading (160) Location To Epsilon Eridani Parts ------- > --- POWER (3) -------- Heavy Antimatter Reactor Light Quantum Reactor Improved Quantum Reactor > --- PROPULSION (7) --- Medium Treads (fused) High-density Centrium Heavy Treads (fused) High-density Centrium Heavy Treads Myomer Leg Centrium Leg > --- UTILITY (10) ----- Experimental Cooling System Experimental Coolant Injector Huge Storage Unit Advanced Targeting Computer Experimental Core Analyzer Precision Matter Filter Centrium Heavy Armor Plating Relay Coupler [NC] (2) Relay Coupler [Grunt] (65) > --- WEAPON (5) ------- Cooled Nova Cannon Helical Railgun Hypervelocity Multirail Light Antimatter Cannon Fusion Bomb Launcher (fused) > --- INVENTORY (25) --- Antimatter Reactor Light Quantum Reactor Faulty High-density Centrium Heavy Treads Myomer Leg Advanced Myomer Leg Biometal Leg Biometal Leg Improved Energy Well (400) Compact Matter Pod (150) Advanced Weapon Cycler Graphene Brace Thermal Barrier AEGIS Remote Shield Relay Coupler [Grunt] (37) High-powered Tractor Beam HERF Cannon Heavy Mass Driver Light Antimatter Cannon Compact Linear Accelerator Advanced Remote Datajack Peak State ------------ > --- POWER ------------ Heavy Antimatter Reactor Light Quantum Reactor Improved Quantum Reactor > --- PROPULSION ------- Medium Treads High-density Centrium Heavy Treads High-density Centrium Heavy Treads Myomer Leg Centrium Leg > --- UTILITY ---------- Experimental Cooling System Experimental Coolant Injector Huge Storage Unit Advanced Targeting Computer Experimental Core Analyzer Precision Matter Filter Centrium Heavy Armor Plating Relay Coupler [NC] Relay Coupler [Grunt] > --- WEAPON ----------- Cooled Nova Cannon Helical Railgun Hypervelocity Multirail Light Antimatter Cannon Fusion Bomb Launcher > --- INVENTORY -------- Antimatter Reactor Light Quantum Reactor High-density Centrium Heavy Treads Myomer Leg Advanced Myomer Leg Biometal Leg Biometal Leg Improved Energy Well Compact Matter Pod Advanced Weapon Cycler Graphene Brace Thermal Barrier AEGIS Remote Shield Relay Coupler [Grunt] High-powered Tractor Beam HERF Cannon Heavy Mass Driver Light Antimatter Cannon Compact Linear Accelerator Advanced Remote Datajack [Rating: 214] Favorites ----------- Power Reinforced Ion Engine Engine Reinforced Ion Engine Power Core Reinforced Fission Core Reactor Heavy Antimatter Reactor Propulsion Improved Treads Treads Improved Treads Leg Advanced Myomer Leg Wheel Armored Huge Wheel Utility Huge Storage Unit Device Seismic Detector Storage Huge Storage Unit Processor Experimental Core Analyzer Hackware Relay Coupler [Grunt] Protection Hardened Medium Armor Plating Weapon Heavy Assault Rifle Energy Gun Wave Gun Energy Cannon Cooled Particle Cannon Ballistic Gun Heavy Assault Rifle Ballistic Cannon Light Antimatter Cannon Launcher Fusion Bomb Launcher Special Weapon Advanced Remote Datajack Slashing Weapon Ripper Piercing Weapon Spear Special Melee Weapon Improved Datajack Build | -11 -10 -10 -9 -9 -9 -8 -8 -8 -8 -8 -7 -7 -6 -6 -5 -5 -5 -5 -4 -4 -4 -4 -4 -4 -3 -2 -2 -2 -1 ------- Run | Yrd Mat Min Mat Min Exi Min Mat Gar Mat Gar Fac Gar Fac Gar Fac Gar Fac Gar Fac Was Fac Gar Fac Gar Res Res Tes Gar Acc Slots Evolved 18 | . . . 2 . . . 2 . . . 2 . 2 . 2 . . . 2 . . . . . 2 2 . . 2 Power 2 | . . . . . . . . . . . . . 1 . . . . . . . . . . . . . . . 1 Propulsion 5 | . . . . . . . 1 . . . . . 1 . 1 . . . 1 . . . . . . . . . 1 Utility 8 | . . . 1 . . . 1 . . . 2 . . . 1 . . . . . . . . . 1 2 . . . Weapon 3 | . . . 1 . . . . . . . . . . . . . . . 1 . . . . . 1 . . . . Parts Attached 226 | 7 7 5 26 5 17 . 13 5 13 9 1 . 5 11 3 8 2 4 1 1 11 13 2 5 5 3 15 7 22 Power 19 | 1 . 1 2 . 2 . 1 . 1 . . . 1 1 . 1 . . . . 2 1 . . 1 . 1 . 3 Engine 7 | 1 . 1 2 . 1 . . . . . . . 1 1 . . . . . . . . . . . . . . . Core 2 | . . . . . . . 1 . . . . . . . . 1 . . . . . . . . . . . . . Reactor 10 | . . . . . 1 . . . 1 . . . . . . . . . . . 2 1 . . 1 . 1 . 3 Propulsion 41 | 2 . 1 7 . 2 . 3 2 3 . . . 1 . 1 . 1 . 1 . . 3 . . . . 5 . 9 Treads 18 | 2 . 1 6 . 2 . 3 . . . . . . . . . . . . . . . . . . . . . 4 Leg 20 | . . . . . . . . . 3 . . . 1 . 1 . 1 . 1 . . 3 . . . . 5 . 5 Wheel 3 | . . . 1 . . . . 2 . . . . . . . . . . . . . . . . . . . . . Hover . | . . . . . . . . . . . . . . . . . . . . . . . . . . . . . . Flight . | . . . . . . . . . . . . . . . . . . . . . . . . . . . . . . Utility 96 | 2 4 3 9 4 6 . 3 . 5 7 . . 2 3 1 6 . 2 . 1 8 3 1 3 2 1 6 6 8 Device 35 | 1 . . . 2 3 . 3 . 2 6 . . . . 1 1 . . . . 5 1 . . 2 . 4 1 3 Storage 4 | 1 2 . . . 1 . . . . . . . . . . . . . . . . . . . . . . . . Processor 3 | . . . . . 1 . . . . . . . . . . . . . . . . . . 1 . . . . 1 Hackware 31 | . . . 1 . . . . . 1 . . . 2 3 . 5 . 1 . 1 3 1 1 2 . 1 2 4 3 Protection 23 | . 2 3 8 2 1 . . . 2 1 . . . . . . . 1 . . . 1 . . . . . 1 1 Artifact . | . . . . . . . . . . . . . . . . . . . . . . . . . . . . . . Weapon 70 | 2 3 . 8 1 7 . 6 3 4 2 1 . 1 7 1 1 1 2 . . 1 6 1 2 2 2 3 1 2 Energy Gun 12 | . . . . . . . . . . 2 . . . 6 . 1 1 1 . . . 1 . . . . . . . Energy Cannon 9 | . . . . . . . 3 1 . . . . . . 1 . . . . . 1 . . 1 . 1 1 . . Ballistic Gun 28 | 2 2 . 5 1 6 . 2 . . . . . . . . . . . . . . 5 . 1 2 . 2 . . Ballistic Cannon 4 | . . . 2 . . . . . . . . . . . . . . . . . . . . . . . . . 2 Launcher 6 | . 1 . . . . . 1 2 . . . . . . . . . . . . . . . . . 1 . 1 . Special Weapon 4 | . . . . . . . . . . . . . 1 1 . . . 1 . . . . 1 . . . . . . Impact Weapon . | . . . . . . . . . . . . . . . . . . . . . . . . . . . . . . Slashing Weapon 2 | . . . 1 . 1 . . . . . . . . . . . . . . . . . . . . . . . . Piercing Weapon 3 | . . . . . . . . . 3 . . . . . . . . . . . . . . . . . . . . Special Melee Weapon 2 | . . . . . . . . . 1 . 1 . . . . . . . . . . . . . . . . . . Unidentified Prototypes 22 | . . . . . 5 . 2 . 3 5 . . . . . . . . . . . . . . 1 . 3 . 3 Parts Lost 43 | . 1 5 1 . 2 1 . 2 8 . . . 1 1 . 1 . . . . 3 3 . 1 . . 5 2 6 Power 4 | . . 1 . . . . . 1 . . . . . . . . . . . . . . . . . . . . 2 Propulsion 10 | . . 2 . . 2 . . . 2 . . . . . . . . . . . . 2 . . . . 2 . . Utility 16 | . . 2 1 . . . . . 5 . . . . . . . . . . . 2 . . 1 . . 1 1 3 Weapon 13 | . 1 . . . . 1 . 1 1 . . . 1 1 . 1 . . . . 1 1 . . . . 2 1 1 Highest Loss Streak 8 | . 1 4 1 . 2 1 . 1 8 . . . 1 1 . 1 . . . . 1 2 . 1 . . 2 2 2 To Critical Strikes 4 | . . . . . 1 . . 1 . . . . . . . . . . . . 1 1 . . . . . . . Average Backups 23 | 3 20 24 24 24 22 23 23 24 24 24 23 24 23 23 23 23 23 23 23 24 23 23 23 23 23 22 23 22 22 Power 1 | . 1 . . 1 1 1 1 1 1 1 1 1 1 1 1 1 1 1 1 1 1 1 1 1 1 1 1 2 1 Propulsion 4 | 1 2 2 4 4 5 7 5 5 4 4 4 4 3 3 2 2 1 1 1 1 2 2 3 3 4 4 3 4 4 Utility 9 | . 10 11 7 7 7 10 11 13 12 11 11 11 12 12 12 12 12 12 12 13 11 10 10 9 10 8 9 11 10 Weapon 7 | 1 7 9 11 11 7 5 5 5 5 6 6 6 6 6 8 7 8 8 7 8 8 8 8 8 7 7 7 5 4 Tool/Special . | . . . . . . . . . . . . . . . . . . . . . . . . . . . . . . Unused Backups 89 | . 4 . 15 3 10 . 4 2 7 1 . . 1 4 . 1 . 2 . . 1 8 . 5 1 . 2 3 15 Power 9 | . . . . . 4 . . 1 . . . . . . . . . . . . 1 . . . . . 1 . 2 Propulsion 15 | . 1 . 4 2 . . . . 1 . . . . . . . . . . . . . . . 1 . 1 2 3 Utility 39 | . 1 . 4 . 4 . 2 1 4 1 . . . 2 . . . 2 . . . 6 . 5 . . . 1 6 Weapon 25 | . 2 . 7 1 2 . 2 . 2 . . . 1 2 . 1 . . . . . 1 . . . . . . 4 Tool/Special 1 | . . . . . . . . . . . . . . . . . . . . . . 1 . . . . . . . Average Slot Usage (%) 94 | . 99 98 99 100 98 100 99 89 82 81 80 80 81 80 81 82 92 93 92 94 93 92 94 93 90 90 92 93 91 Engine 4 | . 14 13 11 11 5 . . . . . . . 4 5 5 4 . . . . . . . . . . . . . Reactor 5 | . . . . . 5 11 8 . . 7 6 6 4 5 5 5 5 5 5 5 9 10 10 10 9 8 8 8 11 Treads 13 | . 27 26 20 22 21 22 27 1 . . . . . . . . . . . . . . . . . . . . 5 Leg 9 | . . . . . . . . . 2 7 6 6 10 11 16 16 27 29 31 31 30 30 31 31 28 26 25 26 19 Device 9 | . 4 10 . 9 . 8 11 8 10 15 20 20 13 13 14 17 17 21 21 15 14 20 19 15 18 23 18 20 12 Storage 8 | . 14 14 11 11 10 11 9 9 8 7 6 6 5 5 5 5 5 5 5 5 5 5 5 5 4 4 4 4 4 Processor 1 | . . . . . . . . . . . . . . . . . . . . . . . . 4 4 4 4 4 5 Hackware 1 | . . . . . . . . . 2 . . . 2 3 5 4 5 1 . 4 5 . 1 . . . 6 4 10 Protection 11 | . 9 3 20 12 20 13 14 18 11 5 6 6 5 5 5 5 5 5 5 5 4 4 5 5 4 4 4 3 4 Energy Gun 2 | . . . . . . . . . . 8 13 13 10 15 11 15 17 16 19 15 15 3 . . . . . . . Energy Cannon 3 | . . . . . . . 15 25 19 23 16 19 14 7 6 2 . . . . 3 1 2 . . . 1 . 3 Ballistic Gun 17 | . 28 28 31 33 26 32 11 . 1 . . . . . . . . . . . . 14 16 19 19 16 15 18 7 Slashing Weapon 1 | . . . . . 5 . . . . . . . . . . . . . . . . . . . . . . . . Peak Build Rating 214 | 7 10 10 25 25 39 35 51 57 102 106 114 122 135 132 137 149 133 136 140 140 149 161 153 160 175 183 193 192 214 Average Rating 81 | 5 8 9 20 22 31 33 43 53 60 95 113 117 125 125 132 137 126 131 137 133 139 149 151 157 164 175 179 181 205 On Entrance 99 | . 7 10 8 25 25 36 35 48 57 102 98 112 115 117 123 132 133 126 128 140 133 140 158 151 159 160 170 166 185 Naked Turns 22 | . . . . . 22 . . . . . . . . . . . . . . . . . . . . . . . . Heaviest Build 208 | 15 92 92 115 115 118 117 134 146 155 145 163 163 173 166 167 167 165 168 162 162 175 178 160 171 174 182 183 176 208 Greatest Support 208 | 40 40 40 46 46 46 43 63 40 90 90 90 90 120 90 90 120 143 143 166 166 166 170 170 170 170 170 176 174 208 Greatest Overweight (x) 29 | . 2 29 10 2 2 2 2 5 3 1 1 1 4 1 1 1 1 1 . . 1 1 . 1 1 1 1 1 1 Average Overweight (x) 1 | . 1 2 2 2 1 2 1 3 2 1 1 1 1 1 1 1 1 . . . . . . . . . . . . Largest Inventory Capacity 25 | 8 25 25 25 25 25 25 25 25 25 25 25 25 25 25 25 25 25 25 25 25 25 25 25 25 25 25 25 25 25 Average Capacity 24 | 7 23 25 25 25 23 25 25 25 25 25 25 25 25 25 25 25 25 25 25 25 25 25 25 25 25 25 25 25 25 Most Carried 25 | 6 25 25 25 25 25 25 25 25 25 25 24 25 25 25 25 25 25 25 25 25 25 25 25 25 25 25 25 25 25 Average Carried 24 | 3 20 24 24 24 23 24 24 24 24 24 23 24 24 24 24 24 24 24 24 25 24 24 24 24 24 22 24 24 24 Final Capacity 25 | 8 25 25 25 25 25 25 25 25 25 25 25 25 25 25 25 25 25 25 25 25 25 25 25 25 25 25 25 25 25 Final Carried 25 | 6 25 21 25 25 25 25 25 25 25 25 24 25 25 25 25 25 25 25 25 25 25 25 24 25 25 25 24 25 22 Class Distribution -------------------- 24% | Tank 20% | Mutant 19% | Scavenger-Tank 13% | Botlord-Tank 8% | Bothacker-Gunner 6% | Scavenger-Gunner 3% | Bothacker-Tank Dominant Class ---------------- Mutant | -10/Materials Mutant | -10/Mines Tank | -9/Materials Scavenger-Tank | -9/Mines Mutant | -9/Exiles Tank | -8/Mines Scavenger-Tank | -8/Materials Tank | -8/Garrison Commander-Tank | -8/Materials Scavenger-Gunner | -8/Garrison Scavenger-Gunner | -7/Factory Scavenger-Gunner | -7/Garrison Scavenger-Gunner | -6/Factory Bothacker-Gunner | -6/Garrison Bothacker-Gunner | -5/Factory Bothacker-Gunner | -5/Garrison Bothacker-Gunner | -5/Factory Bothacker-Gunner | -5/Garrison Bothacker-Gunner | -4/Factory Bothacker-Gunner | -4/Waste Scavenger-Gunner | -4/Factory Scavenger-Tank | -4/Garrison Bothacker-Tank | -4/Factory Botlord-Tank | -4/Garrison Botlord-Tank | -3/Research Botlord-Tank | -2/Research Botlord-Tank | -2/Testing Botlord-Tank | -2/Garrison Botlord-Tank | -1/Access Resources | -11 -10 -10 -9 -9 -9 -8 -8 -8 -8 -8 -7 -7 -6 -6 -5 -5 -5 -5 -4 -4 -4 -4 -4 -4 -3 -2 -2 -2 -1 ----------- Run | Yrd Mat Min Mat Min Exi Min Mat Gar Mat Gar Fac Gar Fac Gar Fac Gar Fac Gar Fac Was Fac Gar Fac Gar Res Res Tes Gar Acc Matter Collected 20711 | 288 462 235 1083 219 1194 295 960 424 326 306 20 40 184 736 . 341 70 237 . . 773 2201 15 1720 618 107 2371 1889 3597 Remotely 1236 | . . . . . . . . . . . . . . . . . . . . . . . . . . . 116 . 1120 Salvage Created 30032 | 104 613 143 1614 145 584 297 1191 833 483 664 . 275 396 1665 . 1120 . 828 . . 1113 2308 15 1247 503 141 2344 1753 9653 Parts 1376 | 12 37 8 100 13 65 16 40 55 33 45 . 13 30 67 . 48 . 33 . . 34 101 . 65 16 10 113 69 353 Haulers Intercepted 11 | . 2 . 5 . . . . . . . . . . . . . . . . . . . . . 1 . . . 3 Recyclers Shooed 6 | . 1 . 1 . . . . . . . . . . . . . . . . . . . . . . . 1 . 3 Parts Field Recycled . | . . . . . . . . . . . . . . . . . . . . . . . . . . . . . . Retrieved Matter . | . . . . . . . . . . . . . . . . . . . . . . . . . . . . . . Parts Self-Destructed . | . . . . . . . . . . . . . . . . . . . . . . . . . . . . . . Prevented . | . . . . . . . . . . . . . . . . . . . . . . . . . . . . . . Kills | -11 -10 -10 -9 -9 -9 -8 -8 -8 -8 -8 -7 -7 -6 -6 -5 -5 -5 -5 -4 -4 -4 -4 -4 -4 -3 -2 -2 -2 -1 ------- Run | Yrd Mat Min Mat Min Exi Min Mat Gar Mat Gar Fac Gar Fac Gar Fac Gar Fac Gar Fac Was Fac Gar Fac Gar Res Res Tes Gar Acc Combat Hostiles Destroyed 540 | . 11 5 34 6 5 8 23 31 4 19 . 6 13 36 . 25 . 20 . . 18 37 . 32 5 5 27 28 142 Melee 1 | . . . . . . . . . 1 . . . . . . . . . . . . . . . . . . . . Guns 281 | . 11 5 29 3 3 6 4 . 1 3 . . 2 20 . 13 . 11 . . 8 26 . 17 5 1 27 22 64 Cannons 82 | . . . 2 . . . 17 15 2 10 . 6 3 13 . 3 . . . . 3 3 . . . . . . 5 AOE 167 | . . . 3 3 2 2 2 16 . 6 . . 8 3 . 6 . 7 . . 5 6 . 15 . 4 . 6 73 Classes Destroyed 28 | 2 5 2 2 1 3 . . 3 . 1 . . . 1 . 1 . . . . . . . . . . 1 . 6 Worker 18 | . 1 . 1 . . . . . . . . . 2 . . . . . . . . . . . . . . . 14 Builder 20 | . . 1 . . . . . . 1 . . . 4 . . . . . . . . . . . . . 2 . 12 Tunneler 9 | 2 . . 1 2 . . . . 1 . . . 1 . . . . . . . . . . . 1 . . . 1 Hauler 11 | . 2 . 5 . . . . . . . . . . . . . . . . . . . . . 1 . . . 3 Recycler 22 | 1 1 . 1 . . . 2 . 1 . . . . . . . . . . . 1 . . . . . 3 . 12 Carrier 5 | . . . . . . . . . . . . . . . . . . . . . . . . . . . . . 5 Mechanic 8 | . . . . . . . . . . . . . . . . . . . . . . . . . . . . . 8 Operator 2 | . 1 . . . . . . . . . . . . . . . . . . . . . 1 . . . . . . Turret 1 | . . . . . 1 . . . . . . . . . . . . . . . . . . . . . . . . Watcher 4 | . . . . . . . . . . . . . . . . . . . . . . . . . . . . . 4 Swarmer 131 | . 3 . 9 3 . 3 3 14 . 4 . . 8 15 . 11 . 8 . . 5 4 . 14 . 4 4 9 10 Cutter 7 | . . . . . . . . 3 . . . . . . . . . . . . . 4 . . . . . . . Saboteur 5 | . . . . . . . . . . . . . . . . . . . . . . . . . . . . . 5 Grunt 188 | . 8 3 15 2 . 5 12 6 . 6 . 6 2 9 . 7 . 7 . . 1 16 . 10 . . 7 7 59 Brawler 17 | . . . . 1 . . 1 1 . . . . . . . . . 1 . . . 1 . 1 . . . 1 10 Duelist 18 | . . . 1 . . . . . . 1 . . . 6 . 1 . . . . 2 . . 2 . . . . 5 Protector 8 | . . . . . . . . . . . . . . 1 . . . . . . . . . . . . . . 7 Sentry 55 | . . . 9 . . . 7 3 2 4 . . 1 3 . 4 . . . . 4 6 . 1 2 1 3 4 1 Demolisher 3 | . . 2 . . . . . . . . . . . 1 . . . . . . . . . . . . . . . Specialist 5 | . . . . . . . . 1 . . . . . . . . . 2 . . . . . . . . 2 . . Hunter 32 | . . . . . . . . 3 1 . . . 1 1 . 1 . . . . 2 2 . 2 . . 5 4 10 Programmer 52 | . . . . . . . . . . 4 . . 1 1 . . . 2 . . 3 3 . 2 3 . 4 3 26 Behemoth 5 | . . . . . . . . . . . . . . . . 1 . . . . 1 1 . . . . . . 2 Investigator 1 | . . . . . . . . . . . . . . . . . . . . . . . . . . . . . 1 Striker 4 | . . . . . . . . . . . . . . . . . . . . . . . . . . . 1 . 3 Executioner 4 | . . . . . . . . . . . . . . . . . . . . . . . . . . . . . 4 Protovariant Y 1 | . . . . . . . . . . . . . . . . . . . . . . . . . . . 1 . . Zionite 8 | . . . . . 8 . . . . . . . . . . . . . . . . . . . . . . . . Assembled 4 | . . . . . 4 . . . . . . . . . . . . . . . . . . . . . . . . Best Kill Streak 30 | 3 4 3 4 3 4 3 3 11 2 9 . 3 10 5 . 4 . 5 . . 6 8 1 8 2 4 5 12 30 Combat Bots Only 22 | . 3 2 4 3 4 3 3 11 2 9 . 3 5 5 . 4 . 5 . . 6 8 . 8 2 4 5 12 22 Max Kills in Single Turn 6 | 1 1 1 3 2 1 1 2 4 1 4 . 1 4 3 . 3 . 3 . . 4 3 1 3 1 2 2 3 6 Gunslinging 1 | . . . . . . . . . . . . . . . . . . . . . . 1 . 1 . . 1 1 . Exploded 5 | . . . 3 2 1 1 1 4 . 4 . . 2 3 . 3 . 3 . . 4 3 . 3 . 2 . 3 5 Melee 1 | . . . . . . . . . 1 . . . . . . . . . . . . . . . . . . . . Uniques/NPCs Destroyed 5 | . . . . . 4 . . . 1 . . . . . . . . . . . . . . . . . . . . 8R-AWN (-9/Exiles) EX-BIN (-9/Exiles) EX-DEC (-9/Exiles) EX-HEX (-9/Exiles) 7R-MNS (-8/Materials) Combat | -11 -10 -10 -9 -9 -9 -8 -8 -8 -8 -8 -7 -7 -6 -6 -5 -5 -5 -5 -4 -4 -4 -4 -4 -4 -3 -2 -2 -2 -1 -------- Run | Yrd Mat Min Mat Min Exi Min Mat Gar Mat Gar Fac Gar Fac Gar Fac Gar Fac Gar Fac Was Fac Gar Fac Gar Res Res Tes Gar Acc Hostile Shots Fired 2521 | . 49 37 111 29 60 42 94 50 71 31 . 9 65 64 . 95 8 58 . . 237 391 . 153 23 14 182 118 530 Missed 780 | . 12 6 26 8 6 5 22 15 4 15 . 1 19 18 . 35 . 16 . . 98 116 . 72 6 4 62 30 184 Hits 1741 | . 37 31 85 21 54 37 72 35 67 16 . 8 46 46 . 60 8 42 . . 139 275 . 81 17 10 120 88 346 Melee 22 | . . . 1 . 2 . . 8 . . . . . 1 . . . . . . 3 2 . . . . 2 . 3 Projectile 1719 | . 37 31 84 21 52 37 72 27 67 16 . 8 46 45 . 60 8 42 . . 136 273 . 81 17 10 118 88 343 AOE 20 | . . 14 . . . . . 3 . . . . . 2 . . . . . . . . . . . . . . 1 Critical Strikes 109 | . . . 4 . 16 2 2 7 1 . . 1 2 3 . 2 . 5 . . 8 22 . 8 3 1 9 3 10 Actively Blocked 13 | . . . . . . . . . . . . . . . . . . . . . . . . . . 1 8 3 1 Part Disruptions 3 | . . . . . . . . . . . . . 2 . . . . 1 . . . . . . . . . . . Damage Taken 21710 | . 445 878 1034 197 974 559 882 880 1521 262 . 48 1117 755 . 1028 104 528 . . 2170 1557 . 675 229 113 1881 955 2918 Core 1744 | . 58 184 151 29 119 59 75 79 212 16 . 8 48 66 . 31 . 53 . . 78 125 . 34 12 . 114 48 145 Absorbed by Shields 7502 | . . . . . . . 168 68 144 . . 10 . . . 94 85 167 . . 448 1984 . 455 166 117 514 732 2350 Reduced by Siege Mode 49 | . . . . . . . . . . . . . . . . . . . . . . . . . . . . . 49 Ignored by Resistances 3705 | . . . . . . . . . . 6 . 62 . 57 . 9 . 58 . . 9 1540 . 215 46 29 686 318 670 Regen/Repaired (Parts) 4343 | . 106 . 268 . . . 312 . 212 . . . 355 470 . . . . . . 895 833 . 892 . . . . . Core Remaining (%) 70 | 100 . 3 . . . 10 . . . 30 . 98 . 86 . . . 91 . . . . . 79 99 . . 88 90 Volleys Fired 1501 | 3 49 25 77 17 66 20 64 64 12 41 4 18 31 80 1 60 2 54 . 4 79 117 9 90 21 15 108 84 286 Largest 5 | 2 2 2 3 3 3 3 3 3 3 5 3 5 5 4 1 4 3 3 . 1 4 4 1 4 5 5 5 5 5 Hottest 346 | 40 40 40 80 69 80 73 90 90 90 266 90 266 266 273 90 273 243 243 . 7 341 346 98 140 175 175 170 185 242 Shots Fired 3482 | 6 97 50 227 47 160 51 150 108 19 100 12 46 71 235 1 151 6 116 . 5 187 370 9 218 101 35 269 246 389 Gun 2550 | 6 96 50 204 45 142 49 36 . 11 24 . 12 18 148 . 133 6 108 . 1 122 335 . 193 101 25 234 233 218 Cannon 686 | . . . 22 . . . 112 97 8 71 12 34 39 77 1 12 . . . . 50 30 4 6 . 1 21 4 85 Launcher 154 | . 1 . 1 2 18 2 2 11 . 5 . . 6 1 . 2 . 4 . . 2 2 . 12 . 4 . 4 75 Special 92 | . . . . . . . . . . . . . 8 9 . 4 . 4 . 4 13 3 5 7 . 5 14 5 11 Kinetic 1925 | 6 96 50 226 45 142 49 36 . 11 . . . . . . . . . . . . 241 . 193 101 25 234 233 237 Thermal 1311 | . . . . . . . 112 97 8 95 12 46 57 225 1 145 6 108 . 1 172 124 4 6 . 1 21 4 66 Explosive 154 | . 1 . 1 2 18 2 2 11 . 5 . . 6 1 . 2 . 4 . . 2 2 . 12 . 4 . 4 75 Electromagnetic . | . . . . . . . . . . . . . . . . . . . . . . . . . . . . . . Robot Hit Streak 52 | 3 11 10 14 13 14 5 14 21 9 21 . 21 25 28 . 20 5 15 . 4 17 12 4 9 13 12 25 11 52 Robot Miss Streak 8 | 1 2 3 3 3 5 4 5 3 1 1 . . 2 3 . 2 1 3 . 2 3 5 1 7 6 2 6 5 8 Penetration Max 2 | . . . . . . . . . 1 . . . . . . . . . . . . 1 . 1 1 . 1 1 2 Secondary Targets 31 | . 2 . 2 . . 1 . . . . . . . . . 3 . 1 . . 2 8 . 3 1 . 6 2 . Max Gunslinging Chain 1 | . 1 . 1 . . 1 . . . . . . . . . 1 . 1 . . 1 1 . 1 1 . 1 1 . Shots Hit Robots 2059 | 4 69 35 138 24 99 28 83 45 26 39 . 20 37 154 . 100 5 66 . 2 119 213 4 94 61 24 166 130 274 Core Hits 1300 | 4 28 13 69 10 54 15 35 42 10 24 . 8 31 66 . 39 2 29 . . 39 92 . 70 20 9 78 54 459 Critical Kills 108 | . . . 1 . . 1 . . 2 . . . . . . . . . . . 1 . . . . . 10 8 85 Critical Parts Destroyed 111 | . . . 2 . 3 . . . 3 . . . . . . . . . . . . 2 . 2 . . 20 7 72 Critical Strikes 260 | . . . 4 . 4 1 . . 5 . . 1 . 1 . 6 . 5 . . 8 5 . 2 . . 32 15 171 Burn 23 | . . . . . . . . . . . . 1 . 1 . 6 . 5 . . 7 3 . . . . . . . Meltdown 1 | . . . . . . . . . . . . . . . . . . . . . 1 . . . . . . . . Destroy 234 | . . . 3 . 3 1 . . 5 . . . . . . . . . . . . 2 . 2 . . 32 15 171 Blast 1 | . . . 1 . . . . . . . . . . . . . . . . . . . . . . . . . . Sever 1 | . . . . . 1 . . . . . . . . . . . . . . . . . . . . . . . . Melee Attacks 40 | . . . 1 . 22 . . . 17 . . . . . . . . . . . . . . . . . . . . Impact . | . . . . . . . . . . . . . . . . . . . . . . . . . . . . . . Slashing 23 | . . . 1 . 22 . . . . . . . . . . . . . . . . . . . . . . . . Piercing 15 | . . . . . . . . . 15 . . . . . . . . . . . . . . . . . . . . Sneak Attacks 4 | . . . . . . . . . 4 . . . . . . . . . . . . . . . . . . . . Combat Hostiles . | . . . . . . . . . . . . . . . . . . . . . . . . . . . . . . Follow-up Attacks 2 | . . . . . . . . . 2 . . . . . . . . . . . . . . . . . . . . Damage Inflicted 78075 | 47 942 464 2224 531 2702 594 2548 2733 631 1821 . 675 2056 3903 . 2782 132 2052 . . 3547 6434 26 4429 1737 814 3637 3718 26896 Guns 34095 | 47 902 434 1876 361 1450 461 275 . 170 338 . 166 265 2687 . 2137 124 1524 . . 2306 5305 . 2282 1669 180 3573 2893 2670 Cannons 9349 | . . . 180 . . . 1951 1168 145 873 . 496 561 972 . 195 . . . . 625 583 . 35 . . 43 . 1522 Explosions 32921 | . . . 110 131 531 133 246 1565 . 610 . . 1122 244 . 450 . 528 . . 560 546 . 2081 . 634 . 825 22605 Melee 1037 | . . . . . 721 . . . 316 . . . . . . . . . . . . . . . . . . . . Ramming 673 | . 40 30 58 39 . . 76 . . . . 13 108 . . . 8 . . . 56 . 26 31 68 . 21 . 99 Kinetic 23974 | 47 902 434 2056 361 1450 461 275 . 170 . . . . . . . . . . . . 3993 . 2282 1669 180 3573 2893 3228 Thermal 19582 | . . . . . . . 1951 1168 145 1211 . 662 938 3659 . 2332 124 1524 . . 2931 1895 . 35 . . 43 . 964 Explosive 32773 | . . . 110 131 531 133 246 1565 . 610 . . 974 244 . 450 . 528 . . 560 546 . 2081 . 634 . 825 22605 Electromagnetic 36 | . . . . . . . . . . . . . 36 . . . . . . . . . . . . . . . . Impact . | . . . . . . . . . . . . . . . . . . . . . . . . . . . . . . Slashing 721 | . . . . . 721 . . . . . . . . . . . . . . . . . . . . . . . . Piercing 316 | . . . . . . . . . 316 . . . . . . . . . . . . . . . . . . . . Highest Corruption 22 | . . . . . . . . . . 1 . . 3 3 . . . 2 2 8 13 17 17 22 5 . 4 10 15 Average Corruption 9 | . . . . . . . . . . 1 . . 1 3 . . . 1 2 6 8 14 17 21 4 . 1 8 9 Corruption Purged . | . . . . . . . . . . . . . . . . . . . . . . . . . . . . . . Corruption Blocked . | . . . . . . . . . . . . . . . . . . . . . . . . . . . . . . Effects 437 | . . . . . . . . . . 1 . . 7 30 . . . 5 . 3 45 78 3 83 5 . 10 48 119 Message Errors 94 | . . . . . . . . . . . . . 1 6 . . . . . 2 10 14 3 15 1 . 2 13 27 Matter Fused 101 | . . . . . . . . . . 1 . . 4 6 . . . 2 . . 8 18 . 18 1 . 2 9 32 Heat Flow Errors 51 | . . . . . . . . . . . . . . 7 . . . 1 . . 8 6 . 7 2 . 3 2 15 Energy Discharges 46 | . . . . . . . . . . . . . 1 4 . . . 1 . . 3 14 . 9 . . . 5 9 Parts Rejected 7 | . . . . . . . . . . . . . . . . . . . . . 1 3 . . . . 1 1 1 Parts Fused 5 | . . . . . . . . . . . . . . . . . . . . . . 1 . . . . . 1 3 Data Loss (minor) 59 | . . . . . . . . . . . . . 1 2 . . . . . . 8 5 . 16 1 . 2 5 19 Data Loss (major) 19 | . . . . . . . . . . . . . . 2 . . . . . . 2 3 . 6 . . . 2 4 Misfires 14 | . . . . . . . . . . . . . . 1 . . . 1 . 1 . 3 . 2 . . . 4 2 Alerts 11 | . . . . . . . . . . . . . . . . . . . . . 2 4 . 1 . . . 1 3 Weapon Failures 30 | . . . . . . . . . . . . . . 2 . . . . . . 3 7 . 9 . . . 5 4 Overload Shots 6 | . . . . . . . . 2 . . . . 1 . . . . . . . . . . . . . . . 3 Overflow Damage 1460 | . . . . 8 10 4 31 68 23 71 . 24 125 4 . 6 . 38 . . 18 24 16 98 38 106 7 126 615 Projectiles 153 | . . . . . . . 31 18 . 13 . 24 . 4 . . . . . . 3 . . . . . . . 60 Explosions 1216 | . . . . 8 10 4 . 50 . 58 . . 118 . . 6 . 38 . . 15 24 . 98 . 106 . 126 555 Melee 91 | . . . . . . . . . 23 . . . 7 . . . . . . . . . 16 . 38 . 7 . . Knockbacks 3 | . 1 . . . . . . . . . . . . . . . . . . . . . . . . . . . 2 Impact 3 | . 1 . . . . . . . . . . . . . . . . . . . . . . . . . . . 2 Kinetic . | . . . . . . . . . . . . . . . . . . . . . . . . . . . . . . Secondary . | . . . . . . . . . . . . . . . . . . . . . . . . . . . . . . Self-Inflicted Damage 982 | . . . . . 28 13 . 159 . 65 . . 124 . . . . 57 . . . 91 . . . . . 3 442 Shots 31 | . . . . . 1 1 . 6 . 2 . . 3 . . . . 2 . . . 2 . . . . . 1 13 Rammed 27 | . 6 3 8 4 . 1 5 . . . . . . . . . . . . . . . . . . . . . . Targets Rammed 50 | . 6 4 8 5 . 1 7 . . . . 1 4 . . . 1 . . . 4 . 1 1 1 . 2 . 4 Kicked 19 | . . . . . . . . . . . . 1 4 . . . 1 . . . 4 . 1 1 1 . 2 . 4 Crushed 4 | . . 1 . 1 . . 2 . . . . . . . . . . . . . . . . . . . . . . Highest Temperature 516 | . 36 14 255 351 344 306 225 298 291 438 . 254 394 516 . 412 237 369 . 37 464 206 48 242 202 94 186 171 391 Average Temperature 91 | . 12 5 71 113 88 124 57 90 112 112 . 101 110 153 . 129 128 106 . 37 117 78 34 49 63 47 54 30 97 Received Heat Transfer 4116 | . 219 153 441 78 . 306 391 86 533 27 . 75 78 165 . 204 12 93 . . 194 251 . 80 26 8 402 81 213 Effects 19 | . . . 1 . . 3 . 1 3 . . . 2 2 . 1 . 2 . . 1 . . . . . . . 3 Shutdowns 4 | . . . . . . . . . . . . . 1 1 . . . . . . 1 . . . . . . . 1 Energy Bleed 3 | . . . . . . . . . . . . . 1 1 . . . . . . . . . . . . . . 1 Interference 12 | . . . 1 . . 3 . 1 3 . . . . . . 1 . 2 . . . . . . . . . . 1 Siege Activations 2 | . . . . . . . . . . . . . . . . . . . . . . . . . . . . . 2 Total Turns 811 | . . . . . . . . . . . . . . . . . . . . . . . . . . . . . 811 Longest Duration 693 | . . . . . . . . . . . . . . . . . . . . . . . . . . . . . 693 Martial Activations . | . . . . . . . . . . . . . . . . . . . . . . . . . . . . . . Shielding Activations . | . . . . . . . . . . . . . . . . . . . . . . . . . . . . . . Robots Disrupted 1 | . . . . . . . . . . . . . 1 . . . . . . . . . . . . . . . . Combat Hostiles . | . . . . . . . . . . . . . . . . . . . . . . . . . . . . . . Robots Corrupted 3 | . . . . . . . . . . . . . 1 . . . . . . . . . 1 . 1 . . . . Combat Hostiles . | . . . . . . . . . . . . . . . . . . . . . . . . . . . . . . Parts Fried 6 | . . . . . . . . . . . . . 1 . . . . . . . . . 3 . 2 . . . . Impact Corruptions 6 | . . . . . . . . . . . . . 1 . . . . . . . . . 2 . 2 . 1 . . Robots Melted 9 | . . . . . . . . . . . . . . . . 3 . 2 . . 2 2 . . . . . . . Combat Hostiles 9 | . . . . . . . . . . . . . . . . 3 . 2 . . 2 2 . . . . . . . Parts Melted 91 | . . . . . . . 8 3 . 2 . . 3 18 . 14 . 9 . . 16 16 . 2 . . . . . Heat Transferred 28755 | . . . . . . . 2590 1554 185 1480 . 925 1160 5384 . 3959 185 2664 . . 4859 2942 . 37 . . 37 . 794 Parts Sabotaged 3 | . . . . . . . . . . . . . . . . . . . . . 2 . . . . . . . 1 Parts Stolen . | . . . . . . . . . . . . . . . . . . . . . . . . . . . . . . Parts Stripped . | . . . . . . . . . . . . . . . . . . . . . . . . . . . . . . Power Chain Reactions . | . . . . . . . . . . . . . . . . . . . . . . . . . . . . . . Alert | -11 -10 -10 -9 -9 -9 -8 -8 -8 -8 -8 -7 -7 -6 -6 -5 -5 -5 -5 -4 -4 -4 -4 -4 -4 -3 -2 -2 -2 -1 ------- Run | Yrd Mat Min Mat Min Exi Min Mat Gar Mat Gar Fac Gar Fac Gar Fac Gar Fac Gar Fac Was Fac Gar Fac Gar Res Res Tes Gar Acc Maximum Alert Level 5 | . . . 1 . . . 1 4 3 3 2 2 1 4 2 4 2 4 2 1 3 5 3 5 4 3 1 4 5 Low Security (%) 40 | 100 100 100 75 100 . 100 84 4 . . . . 50 5 . . . . . 74 9 . . . . . 48 . . Level 1 12 | . . . 24 . . . 15 6 28 14 41 35 49 16 . 8 . 10 . 25 . . . . . 66 51 26 12 Level 2 12 | . . . . . . . . 19 53 42 58 64 . 10 100 41 100 6 100 . 17 11 20 8 . 26 . 46 15 Level 3 14 | . . . . . . . . 30 17 43 . . . 39 . 31 . 46 . . 73 25 79 10 . 6 . 22 23 Level 4 10 | . . . . . . . . 39 . . . . . 28 . 17 . 36 . . . 32 . 23 100 . . 4 16 Level 5 4 | . . . . . . . . . . . . . . . . . . . . . . 30 . 57 . . . . 2 High Security 3 | . . . . . . . . . . . . . . . . . . . . . . . . . . . . . 29 Max Security . | . . . . . . . . . . . . . . . . . . . . . . . . . . . . . . Sterilizations 1 | . . . . . . . . . . . . . . . . . . . . . . . . . . . . . 1 Peak Influence 3428 | 10 143 43 337 128 . 85 263 1499 730 891 467 513 387 1313 688 1253 657 1162 609 202 860 2038 1069 2218 1358 708 323 1151 3428 Initial 1247 | . . 18 5 123 . . 14 162 730 235 467 244 268 109 688 385 657 394 609 202 120 551 1069 518 1247 708 220 235 690 Average 578 | 1 37 7 102 15 . 17 97 949 534 624 412 396 169 820 620 754 613 964 593 187 680 1328 888 1523 1303 335 179 623 1450 Influence Increases 19546 | 15 377 150 984 183 . 250 762 1357 176 696 2 269 539 1254 2 878 66 788 . . 1262 1547 97 1770 346 250 728 976 3822 Destroy 0b10 Robot/C 10485 | . 220 100 680 120 . 160 460 700 80 420 . 120 260 760 . 540 40 400 . . 460 860 60 820 135 75 435 450 2130 Destroy 0b10 Robot/NC 462 | 15 25 5 40 10 . . 10 10 15 . . . 35 5 . . . . . . 15 . 5 . 8 . 20 . 244 Destroy Leader 1536 | . 54 30 200 30 . 30 120 40 40 30 . . 70 30 . 40 20 40 . . 100 60 10 58 50 16 48 40 380 Allied During Kill 641 | . . . . . . . . 76 18 12 . . . 9 . 19 6 . . . 55 58 16 250 83 . 21 15 3 Successful Hack 288 | . 28 . 38 . . . 42 14 3 . . 14 24 . . 14 . 16 . . 39 30 . 14 . . 12 . . Select Force Hacks 30 | . 30 . . . . . . . . . . . . . . . . . . . . . . . . . . . . Disable Machine 987 | . 15 . . 15 . 15 30 60 15 60 . . 90 45 . 30 . 30 . . 270 60 . 48 12 . 84 24 84 Anti-Garrison Action 2204 | . . . . . . . . 300 . 100 . 100 . 350 . 150 . 100 . . 150 350 . 377 . . . 227 . Destroy Structure 2508 | . 5 . 11 8 . 15 55 157 5 29 2 35 45 25 2 70 . 97 . . 158 114 6 203 58 159 72 208 969 Partial Spotted 12 | . . . . . . . . . . . . . . . . . . . . . . . . . . . 12 . . Lose Combat Pursuer 393 | . . 15 15 . . 30 45 . . 45 . . 15 30 . 15 . 105 . . 15 15 . . . . 24 12 12 Influence Decreases 16118 | 15 328 184 683 497 2 212 550 108 1313 167 544 105 896 97 765 175 756 189 583 407 646 297 1394 293 1305 1116 807 139 1545 Entered New Map 8266 | . . 31 10 193 2 . 24 88 769 127 424 105 245 47 625 165 596 169 553 377 52 237 969 223 971 551 173 79 461 Time Decay 5090 | 15 318 133 646 304 . 202 376 . 214 . 120 . 356 . 140 . 160 . 30 30 474 . 50 . 254 140 419 . 709 Lost Part 375 | . 10 20 10 . . 10 . 20 80 . . . 10 10 . 10 . . . . 30 30 . 10 . . 45 20 60 Lost Ally 570 | . . . . . . . . . 100 40 . . 10 40 . . . 20 . . 90 30 . 60 80 . 20 40 40 Purge Threat 1817 | . . . 17 . . . 150 . 150 . . . 275 . . . . . . . . . 375 . . 425 150 . 275 Squads Dispatched 69 | . 2 . 4 1 . . 1 . 1 . 1 . 4 . . . 1 . . . 11 . 1 . 3 1 9 . 29 Investigation 4 | . 1 . . 1 . . 1 . . . . . . . . . . . . . . . . . . . 1 . . Extermination 12 | . . . . . . . . . . . 1 . 1 . . . . . . . 2 . . . 1 . 2 . 5 Reinforcement 19 | . 1 . 4 . . . . . . . . . 3 . . . . . . . 4 . 1 . 1 1 1 . 3 Assault 28 | . . . . . . . . . . . . . . . . . 1 . . . 5 . . . 1 . . . 21 Garrison 6 | . . . . . . . . . 1 . . . . . . . . . . . . . . . . . 5 . . Intercept . | . . . . . . . . . . . . . . . . . . . . . . . . . . . . . . Searches Triggered . | . . . . . . . . . . . . . . . . . . . . . . . . . . . . . . Construction Impeded 4 | . . . . . . . . . . . . . . . . . . . . . 2 . . . . . . . 2 Haulers Reinforced 3 | . . . . . . . . . . . . . . . . . . . . . . . . . 1 . 1 . 1 Active Scanning Responses . | . . . . . . . . . . . . . . . . . . . . . . . . . . . . . . Cargo Convoy Interrupts 1 | . . . . . . . . . . . . . . . . . . . . . 1 . . . . . . . . Stealth | -11 -10 -10 -9 -9 -9 -8 -8 -8 -8 -8 -7 -7 -6 -6 -5 -5 -5 -5 -4 -4 -4 -4 -4 -4 -3 -2 -2 -2 -1 --------- Run | Yrd Mat Min Mat Min Exi Min Mat Gar Mat Gar Fac Gar Fac Gar Fac Gar Fac Gar Fac Was Fac Gar Fac Gar Res Res Tes Gar Acc Distress Signals 16 | . 1 . 5 . . . 4 . . . . . 1 . . . . . . . 1 . 1 . . . . . 3 Communications Jammed 176 | . . . . . . . 24 . 2 . . . . . . . . . . . . . . . . . 3 . 147 Distress Signals 175 | . . . . . . . 24 . 1 . . . . . . . . . . . . . . . . . 3 . 147 Times Spotted 788 | . 30 6 61 6 15 10 39 30 6 21 . 6 22 42 . 26 5 21 . 4 47 42 1 49 10 5 49 30 205 Peak Tracking Total 12 | . 3 2 6 3 9 3 4 6 2 7 . 3 5 5 . 5 3 7 . 4 11 9 3 8 3 3 6 8 12 Tactical Retreats 20 | . . 1 1 . 1 1 2 . . 2 . . 1 1 . 1 . 3 . . 1 1 . . . . 2 1 1 Traps | -11 -10 -10 -9 -9 -9 -8 -8 -8 -8 -8 -7 -7 -6 -6 -5 -5 -5 -5 -4 -4 -4 -4 -4 -4 -3 -2 -2 -2 -1 ------- Run | Yrd Mat Min Mat Min Exi Min Mat Gar Mat Gar Fac Gar Fac Gar Fac Gar Fac Gar Fac Was Fac Gar Fac Gar Res Res Tes Gar Acc Traps Triggered 61 | . . . . . . . 1 6 1 10 . 5 2 8 . 11 . 5 2 . 1 2 . 4 . . 1 2 . Indirectly . | . . . . . . . . . . . . . . . . . . . . . . . . . . . . . . Trap Hack Attempts 7 | . . . . . . . . . . . 7 . . . . . . . . . . . . . . . . . . Triggered . | . . . . . . . . . . . . . . . . . . . . . . . . . . . . . . Disarmed . | . . . . . . . . . . . . . . . . . . . . . . . . . . . . . . Reprogrammed 1 | . . . . . . . . . . . 1 . . . . . . . . . . . . . . . . . . Reused . | . . . . . . . . . . . . . . . . . . . . . . . . . . . . . . Traps Extracted . | . . . . . . . . . . . . . . . . . . . . . . . . . . . . . . Installed . | . . . . . . . . . . . . . . . . . . . . . . . . . . . . . . Triggered . | . . . . . . . . . . . . . . . . . . . . . . . . . . . . . . Machines | -11 -10 -10 -9 -9 -9 -8 -8 -8 -8 -8 -7 -7 -6 -6 -5 -5 -5 -5 -4 -4 -4 -4 -4 -4 -3 -2 -2 -2 -1 ---------- Run | Yrd Mat Min Mat Min Exi Min Mat Gar Mat Gar Fac Gar Fac Gar Fac Gar Fac Gar Fac Was Fac Gar Fac Gar Res Res Tes Gar Acc Machines Disabled 126 | . 1 . . 1 19 1 2 8 1 9 . 1 6 9 . 4 . 4 . . 19 10 . 10 1 . 7 5 8 Max in Single Turn 4 | . 1 . . 1 2 1 1 1 . 2 . 1 4 1 . 1 . 1 . . . 1 . 1 . . 1 1 1 Garrison Access 4 | . . . . . . . . . . . . . . . . . . . . . 1 . . . . 1 . . 2 Garrison Relay 29 | . . . . . . . . 3 . 2 . 1 . 5 . 2 . 2 . . . 5 . 6 . . . 3 . Machines Repaired . | . . . . . . . . . . . . . . . . . . . . . . . . . . . . . . Machines Dismantled . | . . . . . . . . . . . . . . . . . . . . . . . . . . . . . . Machines Sabotaged . | . . . . . . . . . . . . . . . . . . . . . . . . . . . . . . Overloaded Fab Kills . | . . . . . . . . . . . . . . . . . . . . . . . . . . . . . . Hacking | -11 -10 -10 -9 -9 -9 -8 -8 -8 -8 -8 -7 -7 -6 -6 -5 -5 -5 -5 -4 -4 -4 -4 -4 -4 -3 -2 -2 -2 -1 --------- Run | Yrd Mat Min Mat Min Exi Min Mat Gar Mat Gar Fac Gar Fac Gar Fac Gar Fac Gar Fac Was Fac Gar Fac Gar Res Res Tes Gar Acc Machines Accessed 92 | . 9 . 9 1 2 . 14 3 4 . 1 2 5 4 2 2 3 2 1 . 5 2 1 2 2 4 6 2 4 Terminals 57 | . 7 . 6 . . . 10 3 2 . . 2 1 4 . 2 1 2 . . 2 2 . 2 2 3 2 2 2 Fabricators 5 | . . . . . . . . . . . . . 1 . 1 . . . 1 . . . . . . . 2 . . Repair Stations 4 | . 1 . 1 . . . 1 . . . . . . . . . . . . . 1 . . . . . . . . Recycling Units 8 | . 1 . 2 . . . 1 . 1 . . . 1 . . . 1 . . . 1 . . . . . . . . Scanalyzers 3 | . . . . . . . 1 . . . . . 1 . . . . . . . . . . . . . 1 . . Garrison Access 12 | . . . . . . . 1 . 1 . 1 . 1 . 1 . 1 . . . 1 . 1 . . 1 1 . 2 Total Hacks 228 | . 26 . 37 1 2 . 53 6 16 . 2 4 8 6 3 4 4 2 1 . 12 4 2 3 2 8 9 5 8 Successful 108 | . 11 . 18 1 2 . 29 2 7 . 2 1 6 . 2 1 2 1 . . 6 2 2 1 . 4 4 . 4 Failed 120 | . 15 . 19 . . . 24 4 9 . . 3 2 6 1 3 2 1 1 . 6 2 . 2 2 4 5 5 4 Catastrophic 29 | . 2 . 1 . . . 3 2 2 . . 1 1 3 . 1 1 1 1 . 1 . . . 2 1 3 1 2 Database Lockouts . | . . . . . . . . . . . . . . . . . . . . . . . . . . . . . . Manual 93 | . 8 . 18 . 1 . 37 4 7 . . . 3 . 1 1 1 . 1 . 2 2 . . 2 3 2 . . Terminals 148 | . 22 . 23 . . . 40 6 6 . . 4 1 6 . 4 1 2 . . 6 4 . 3 2 6 3 5 4 Fabricators 7 | . . . . . . . . . . . . . 2 . 1 . . . 1 . . . . . . . 3 . . Repair Stations 21 | . 2 . 9 . . . 6 . . . . . . . . . . . . . 4 . . . . . . . . Recycling Units 23 | . 2 . 5 . . . 3 . 8 . . . 3 . . . 1 . . . 1 . . . . . . . . Scanalyzers 5 | . . . . . . . 3 . . . . . 1 . . . . . . . . . . . . . 1 . . Garrison Access 21 | . . . . . . . 1 . 2 . 2 . 1 . 2 . 2 . . . 1 . 2 . . 2 2 . 4 Terminal Hacks 39 | . 7 . 4 1 2 . 10 1 2 . . 1 . . . 1 . 1 . . 3 2 . 1 . 2 1 . . Record 1 | . . . . . 1 . . . . . . . . . . . . . . . . . . . . . . . . Part Schematic 1 | . . . . . . . 1 . . . . . . . . . . . . . . . . . . . . . . Robot Analysis 6 | . . . 1 . . . 5 . . . . . . . . . . . . . . . . . . . . . . Prototype ID Bank 5 | . 3 . 1 . . . . . . . . . . . . . . . . . 1 . . . . . . . . Open Door 1 | . . . . 1 . . . . . . . . . . . . . . . . . . . . . . . . . Branch Access Points 1 | . . . . . . . . . . . . . . . . . . . . . . . . . . 1 . . . Emergency Access Points 3 | . . . . . . . . 1 . . . . . . . . . . . . . 1 . 1 . . . . . Unreport Threat 4 | . . . 1 . . . 1 . 1 . . . . . . . . . . . . . . . . 1 . . . Locate Traps 1 | . . . . . . . . . . . . . . . . . . . . . 1 . . . . . . . . Dispatch Records 1 | . 1 . . . . . . . . . . . . . . . . . . . . . . . . . . . . Hauler Manifests 5 | . 1 . 1 . . . 1 . 1 . . . . . . . . . . . 1 . . . . . . . . Registered Components 1 | . . . . . . . 1 . . . . . . . . . . . . . . . . . . . . . . Registered Prototypes 2 | . 1 . . . . . . . . . . . . . . . . . . . . . . . . . 1 . . Zone Layout 2 | . 1 . . . . . 1 . . . . . . . . . . . . . . . . . . . . . . Garrison Registry 1 | . . . . . . . . . . . . 1 . . . . . . . . . . . . . . . . . Patrol Navigation 2 | . . . . . . . . . . . . . . . . 1 . . . . . 1 . . . . . . . Security Stations 1 | . . . . . . . . . . . . . . . . . . 1 . . . . . . . . . . . Proto ID Catalog 1 | . . . . . 1 . . . . . . . . . . . . . . . . . . . . . . . . Fabricator Hacks 1 | . . . . . . . . . . . . . 1 . . . . . . . . . . . . . . . . Network Status 1 | . . . . . . . . . . . . . 1 . . . . . . . . . . . . . . . . Repair Station Hacks 14 | . 2 . 6 . . . 5 . . . . . . . . . . . . . 1 . . . . . . . . Scan Component 8 | . 1 . 3 . . . 3 . . . . . . . . . . . . . 1 . . . . . . . . Repair 6 | . 1 . 3 . . . 2 . . . . . . . . . . . . . . . . . . . . . . Recycling Unit Hacks 5 | . . . 2 . . . 1 . 1 . . . 1 . . . . . . . . . . . . . . . . Retrieve Components 5 | . . . 2 . . . 1 . 1 . . . 1 . . . . . . . . . . . . . . . . Scanalyzer 5 | . . . . . . . 3 . . . . . 1 . . . . . . . . . . . . . 1 . . Insert Component 5 | . . . . . . . 3 . . . . . 1 . . . . . . . . . . . . . 1 . . Garrison Access Hacks 21 | . . . . . . . 1 . 2 . 2 . 1 . 2 . 2 . . . 1 . 2 . . 2 2 . 4 Unlock Access 10 | . . . . . . . 1 . 1 . 1 . 1 . 1 . 1 . . . 1 . 1 . . . 1 . 1 Seal Access 3 | . . . . . . . . . . . . . . . . . . . . . . . . . . 1 . . 2 Coupler Status 8 | . . . . . . . . . 1 . 1 . . . 1 . 1 . . . . . 1 . . 1 1 . 1 Unauthorized Hacks 23 | . 2 . 6 . . . 9 1 2 . . . 2 . . . . . . . 1 . . . . . . . . Terminals 16 | . 1 . 5 . . . 8 1 . . . . . . . . . . . . 1 . . . . . . . . Assimilate 1 | . 1 . . . . . . . . . . . . . . . . . . . . . . . . . . . . Botnet 3 | . . . . . . . 2 1 . . . . . . . . . . . . . . . . . . . . . Disrupt 2 | . . . . . . . 1 . . . . . . . . . . . . . 1 . . . . . . . . Skim 10 | . . . 5 . . . 5 . . . . . . . . . . . . . . . . . . . . . . Fabricators 1 | . . . . . . . . . . . . . 1 . . . . . . . . . . . . . . . . Haulers 1 | . . . . . . . . . . . . . 1 . . . . . . . . . . . . . . . . Repair Stations . | . . . . . . . . . . . . . . . . . . . . . . . . . . . . . . Recycling Units 6 | . 1 . 1 . . . 1 . 2 . . . 1 . . . . . . . . . . . . . . . . Recyclers 3 | . . . 1 . . . . . 1 . . . 1 . . . . . . . . . . . . . . . . Mask 2 | . . . . . . . 1 . 1 . . . . . . . . . . . . . . . . . . . . Tunnel 1 | . 1 . . . . . . . . . . . . . . . . . . . . . . . . . . . . Scanalyzers . | . . . . . . . . . . . . . . . . . . . . . . . . . . . . . . Garrison Access . | . . . . . . . . . . . . . . . . . . . . . . . . . . . . . . Data Cores Recovered . | . . . . . . . . . . . . . . . . . . . . . . . . . . . . . . Used . | . . . . . . . . . . . . . . . . . . . . . . . . . . . . . . Hacking Detections 77 | . 8 . 8 . . . 13 2 3 . 1 2 4 4 2 2 3 1 1 . 4 1 1 1 2 4 6 2 2 Full Trace Events 6 | . . . . . . . . 1 . . . 1 . . . 1 . . . . . . . 1 . . 1 1 . Feedback Events . | . . . . . . . . . . . . . . . . . . . . . . . . . . . . . . Feedback Blocked . | . . . . . . . . . . . . . . . . . . . . . . . . . . . . . . Robot Schematics Acquired . | . . . . . . . . . . . . . . . . . . . . . . . . . . . . . . Robots Built . | . . . . . . . . . . . . . . . . . . . . . . . . . . . . . . Authchips . | . . . . . . . . . . . . . . . . . . . . . . . . . . . . . . Time . | . . . . . . . . . . . . . . . . . . . . . . . . . . . . . . Total Robot Build Rating . | . . . . . . . . . . . . . . . . . . . . . . . . . . . . . . Part Schematics Acquired 1 | . . . . . . . 1 . . . . . . . . . . . . . . . . . . . . . . Parts Built . | . . . . . . . . . . . . . . . . . . . . . . . . . . . . . . Authchips . | . . . . . . . . . . . . . . . . . . . . . . . . . . . . . . Time . | . . . . . . . . . . . . . . . . . . . . . . . . . . . . . . Total Part Build Rating . | . . . . . . . . . . . . . . . . . . . . . . . . . . . . . . Parts Repaired 6 | . 1 . 3 . . . 2 . . . . . . . . . . . . . . . . . . . . . . Time 210 | . 26 . 108 . . . 76 . . . . . . . . . . . . . . . . . . . . . . Parts Recycled . | . . . . . . . . . . . . . . . . . . . . . . . . . . . . . . Recycled Matter . | . . . . . . . . . . . . . . . . . . . . . . . . . . . . . . Retrieved Matter . | . . . . . . . . . . . . . . . . . . . . . . . . . . . . . . Retrieved Components 21 | . . . 11 . . . 4 . 3 . . . 3 . . . . . . . . . . . . . . . . Parts Scanalyzed . | . . . . . . . . . . . . . . . . . . . . . . . . . . . . . . Part Schematics Acquired . | . . . . . . . . . . . . . . . . . . . . . . . . . . . . . . Parts Damaged . | . . . . . . . . . . . . . . . . . . . . . . . . . . . . . . Bothacking | -11 -10 -10 -9 -9 -9 -8 -8 -8 -8 -8 -7 -7 -6 -6 -5 -5 -5 -5 -4 -4 -4 -4 -4 -4 -3 -2 -2 -2 -1 ------------ Run | Yrd Mat Min Mat Min Exi Min Mat Gar Mat Gar Fac Gar Fac Gar Fac Gar Fac Gar Fac Was Fac Gar Fac Gar Res Res Tes Gar Acc Used RIF Installer 10 | . . . . . . . . 1 . 2 . 1 . 1 . 1 . 1 . . . 1 . 1 . . . 1 . Hotswap 1 | . . . . . . . . . . 1 . . . . . . . . . . . . . . . . . . . Code Merge 2 | . . . . . . . . . . . . . . . . . . 1 . . . . . . . . . 1 . Command Fork 1 | . . . . . . . . . . . . . . . . . . . . . . 1 . . . . . . . Threat Obfuscator 1 | . . . . . . . . . . . . . . . . . . . . . . . . 1 . . . . . Signal Jammer 1 | . . . . . . . . . . . . . . 1 . . . . . . . . . . . . . . . Zone Cloak 1 | . . . . . . . . . . . . . . . . 1 . . . . . . . . . . . . . Watcher Feeds 1 | . . . . . . . . . . . . 1 . . . . . . . . . . . . . . . . . Program Shield 1 | . . . . . . . . . . 1 . . . . . . . . . . . . . . . . . . . Robots Hacked 49 | . . . . . . . . . 1 . . . 4 5 . 3 . 3 . 3 6 1 1 2 . 1 10 3 6 Non-combat 15 | . . . . . . . . . 1 . . . 2 1 . . . . . . 2 1 1 1 . 1 3 . 2 Combat 34 | . . . . . . . . . . . . . 2 4 . 3 . 3 . 3 4 . . 1 . . 7 3 4 Robot Hacks Applied 59 | . . . . . . . . . 1 . . . 5 5 . 3 . 3 . 3 7 1 4 2 . 4 11 3 7 parse_system 1 | . . . . . . . . . . . . . . . . . . . . . . . . . . . 1 . . drop_inventory 3 | . . . . . . . . . . . . . . . . . . . . . 1 . . . . . 1 . 1 purge_threat 10 | . . . . . . . . . . . . . 2 . . . . . . . . . 3 . . 2 1 . 2 reprogram_traps 1 | . . . . . . . . . . . . . . . . . . . . . . . 1 . . . . . . block_reporting 3 | . . . . . . . . . . . . . . . . . . . . . . . . . . 1 2 . . disable_scanner 1 | . . . . . . . . . . . . . . . . . . . . . . . . . . . 1 . . ignore_targets 3 | . . . . . . . . . . . . . . . . . . . . 3 . . . . . . . . . find_garrison 2 | . . . . . . . . . . . . . 1 . . . . . . . 1 . . . . . . . . disrupt_area 2 | . . . . . . . . . . . . . . . . . . . . . . . . . . . 2 . . amplify_resonance 6 | . . . . . . . . . . . . . . . . 2 . 2 . . . . . . . . 1 1 . reboot_system 2 | . . . . . . . . . . . . . . . . . . . . . . . . . . . . . 2 overwrite_iff 5 | . . . . . . . . . . . . . 1 2 . . . . . . . . . . . . 1 . 1 streamctrl_low 1 | . . . . . . . . . . . . . . 1 . . . . . . . . . . . . . . . formatsys_low 6 | . . . . . . . . . 1 . . . 1 . . . . . . . 1 1 . 1 . 1 . . . formatsys_high 13 | . . . . . . . . . . . . . . 2 . 1 . 1 . . 4 . . 1 . . 1 2 1 Relay Couplers Released 139 | . . . . . . . . 11 . 11 . 3 . 22 . 8 . 10 . . 3 25 . 24 . 1 . 17 4 Machine Destruction 123 | . . . . . . . . 11 . 8 . 3 . 19 . 8 . 10 . . 3 22 . 24 . 1 . 13 1 Programmers 16 | . . . . . . . . . . 3 . . . 3 . . . . . . . 3 . . . . . 4 3 Attached 29 | . . . . . . . . . 1 . . . 2 3 . 5 . 1 . 1 3 1 1 2 . 1 2 4 2 Merged Code Value 45 | . . . . . . . . . . . . . . . . . . . . . . . . . . . . 32 13 Fabnet Peak Effective % . | . . . . . . . . . . . . . . . . . . . . . . . . . . . . . . Robots Rewired 16 | . . . . . . . . 8 . . . . . . . . . . . . . 3 . 5 . . . . . Allies Hacked 2 | . . . . . . . . . . . . . . . . . . . . . 1 1 . . . . . . . Hacks Repelled . | . . . . . . . . . . . . . . . . . . . . . . . . . . . . . . Allies | -11 -10 -10 -9 -9 -9 -8 -8 -8 -8 -8 -7 -7 -6 -6 -5 -5 -5 -5 -4 -4 -4 -4 -4 -4 -3 -2 -2 -2 -1 -------- Run | Yrd Mat Min Mat Min Exi Min Mat Gar Mat Gar Fac Gar Fac Gar Fac Gar Fac Gar Fac Was Fac Gar Fac Gar Res Res Tes Gar Acc Total Allies 47 | . 1 3 . . . . . 8 1 2 . . 2 5 . 1 . 1 . . 5 4 . 7 . 1 2 2 2 Largest Group 8 | . 1 4 1 . . . . 8 6 2 . . 2 2 . 1 1 1 . . 3 3 2 6 6 1 1 2 1 Highest-Rated Group 358 | . 10 50 10 . . . . 174 132 64 . . 52 79 . 49 49 29 . . 141 204 136 358 358 45 58 206 64 Highest-Rated Ally 148 | . 10 16 10 . . . . 24 24 39 . . 29 47 . 49 49 29 . . 58 68 68 116 116 45 58 148 64 Total Orders 21 | . 2 4 . . . . . 3 1 . . . 1 1 . . . . . . 1 7 . 1 . . . . . STAY 7 | . 1 2 . . . . . 2 . . . . . . . . . . . . . 2 . . . . . . . FOLLOW 7 | . 1 2 . . . . . 1 . . . . . . . . . . . . . 3 . . . . . . . AID 7 | . . . . . . . . . 1 . . . 1 1 . . . . . . 1 2 . 1 . . . . . Ally Attacks 237 | . . 4 . . . . . 11 38 14 . . . 14 . 7 6 1 . . 28 13 8 41 24 . 10 13 5 Total Damage 9000 | . . 29 . . . . . 251 645 160 . . . 289 . 292 164 18 . . 1118 959 553 2319 1358 . 314 166 365 Kills 53 | . . . . . . . . 4 3 2 . . . 3 . 2 2 . . . 7 6 3 12 4 . 2 2 1 Allies Corrupted 3 | . . . . . . . . . . . . . . . . . . . . . 2 . . . . . . . 1 Allies Melted 1 | . . . . . . . . . . 1 . . . . . . . . . . . . . . . . . . . Intel | -11 -10 -10 -9 -9 -9 -8 -8 -8 -8 -8 -7 -7 -6 -6 -5 -5 -5 -5 -4 -4 -4 -4 -4 -4 -3 -2 -2 -2 -1 ------- Run | Yrd Mat Min Mat Min Exi Min Mat Gar Mat Gar Fac Gar Fac Gar Fac Gar Fac Gar Fac Was Fac Gar Fac Gar Res Res Tes Gar Acc Active Infowar (turns) 15455 | 33 774 1802 281 1874 . 883 1742 575 231 423 241 305 540 534 167 348 284 333 79 77 694 598 80 112 312 290 449 597 797 Seismic 14236 | 33 774 1802 281 1874 . 883 1700 . 180 177 241 305 498 271 167 348 284 333 79 77 694 598 80 112 312 290 449 597 797 Jamming 1328 | . . . . . . . 42 575 160 246 . . 42 263 . . . . . . . . . . . . . . . Robot Analysis Total 6 | . . . 1 . . . 5 . . . . . . . . . . . . . . . . . . . . . . Derelict Logs Recovered 5 | . . 2 . 3 . . . . . . . . . . . . . . . . . . . . . . . . . Drone Launches . | . . . . . . . . . . . . . . . . . . . . . . . . . . . . . . Drone Recoveries . | . . . . . . . . . . . . . . . . . . . . . . . . . . . . . . Exploration | -11 -10 -10 -9 -9 -9 -8 -8 -8 -8 -8 -7 -7 -6 -6 -5 -5 -5 -5 -4 -4 -4 -4 -4 -4 -3 -2 -2 -2 -1 ------------- Run | Yrd Mat Min Mat Min Exi Min Mat Gar Mat Gar Fac Gar Fac Gar Fac Gar Fac Gar Fac Was Fac Gar Fac Gar Res Res Tes Gar Acc Turns Passed 46516 | 109 2329 2396 4660 2304 9900 1082 2375 1642 448 878 241 528 809 1759 289 1107 335 968 79 77 1212 1738 109 1522 546 290 1024 1259 4501 Spaces Moved 18667 | 55 749 631 1338 692 3273 309 771 932 216 445 145 260 436 945 186 534 179 447 69 63 767 953 67 1011 391 174 614 769 1246 Core 50 | 3 . 5 . . 42 . . . . . . . . . . . . . . . . . . . . . . . . Treads 7873 | 52 749 626 1188 692 3231 309 771 . . . . . . . . . . . . . . . . . . . . . 255 Legs 9485 | . . . . . . . . . 39 445 145 260 436 945 186 534 179 447 69 63 767 953 67 1011 391 174 614 769 991 Wheels 1259 | . . . 150 . . . . 932 177 . . . . . . . . . . . . . . . . . . . . Hover . | . . . . . . . . . . . . . . . . . . . . . . . . . . . . . . Flight . | . . . . . . . . . . . . . . . . . . . . . . . . . . . . . . Fastest Speed 50 | 50 160 320 215 320 50 320 240 140 140 150 150 150 133 150 150 150 150 108 110 110 82 110 110 110 110 110 108 115 114 Average Speed 202 | 154 278 338 308 320 289 320 254 143 144 150 150 150 150 150 150 157 176 176 110 110 121 130 110 111 115 141 114 121 133 Slowest Speed 1500 | 160 320 1500 320 320 320 320 320 175 250 150 150 150 365 150 150 160 178 178 110 110 176 186 110 183 183 183 188 185 187 Overloaded Moves 29 | . . . . . . . . . . . . . 7 . . . . . . . 22 . . . . . . . . Propulsion Burnouts . | . . . . . . . . . . . . . . . . . . . . . . . . . . . . . . Robots Hopped . | . . . . . . . . . . . . . . . . . . . . . . . . . . . . . . Potential Cave-ins . | . . . . . . . . . . . . . . . . . . . . . . . . . . . . . . Cave-ins Triggered . | . . . . . . . . . . . . . . . . . . . . . . . . . . . . . . Exploration Rate (%) 53 | 4 98 97 96 100 93 72 89 96 23 52 5 46 14 79 8 73 7 60 3 73 33 88 3 88 11 5 91 70 30 Regions Visited 29 Branch Regions 5 Pre-discovered Areas 7 | . 1 2 1 . 1 . 2 . . . . . . . . . . . . . . . . . . . . . . Known Exits Taken 11 | . . . 1 . . . 1 . 1 . 1 . 1 . 1 . 1 . . . 1 . 1 . . 1 1 . . Unknown Exits Taken 7 | 1 1 1 . 1 1 1 . . . . . . . . . . . . . . . . . . 1 . . . . Scrap Searched 4 | . . 2 . 1 . 1 . . . . . . . . . . . . . . . . . . . . . . . Spaces Dug 239 | . 5 . 1 . . 15 2 9 . . 1 . 3 12 1 14 . 25 . . 20 17 3 29 . . 11 1 70 Terrain Destroyed 1347 | . 5 . 8 13 24 15 74 72 4 19 2 . 48 12 1 38 . 53 . . 68 55 4 105 4 93 43 107 480 Melee 1 | . . . 1 . . . . . . . . . . . . . . . . . . . . . . . . . . Projectile 246 | . . . . . 1 . 38 6 3 . 2 . 6 . 1 3 . 5 . . 30 36 4 22 2 . 32 31 24 AOE 1053 | . 5 . 7 13 23 15 36 66 . 19 . . 42 12 . 35 . 48 . . 38 16 . 81 . 92 . 71 434 Terrain Rammed . | . . . . . . . . . . . . . . . . . . . . . . . . . . . . . . Walls Destroyed . | . . . . . . . . . . . . . . . . . . . . . . . . . . . . . . Machines Disabled . | . . . . . . . . . . . . . . . . . . . . . . . . . . . . . . Actions | -11 -10 -10 -9 -9 -9 -8 -8 -8 -8 -8 -7 -7 -6 -6 -5 -5 -5 -5 -4 -4 -4 -4 -4 -4 -3 -2 -2 -2 -1 --------- Run | Yrd Mat Min Mat Min Exi Min Mat Gar Mat Gar Fac Gar Fac Gar Fac Gar Fac Gar Fac Was Fac Gar Fac Gar Res Res Tes Gar Acc Total 25077 | 70 891 831 1697 736 3579 360 1037 1139 315 587 159 365 527 1163 194 707 193 568 73 68 932 1257 98 1296 450 209 834 997 3745 Wait 3078 | . 46 161 160 1 52 21 112 2 10 25 . 52 24 41 . 26 . 12 . . 17 42 15 81 5 6 14 61 2092 Move 18646 | 54 748 630 1337 691 3272 308 771 931 215 444 145 259 436 944 186 533 179 446 69 62 767 952 67 1010 390 173 614 768 1245 Hop . | . . . . . . . . . . . . . . . . . . . . . . . . . . . . . . Pick Up 305 | 6 26 . 34 5 61 1 11 10 18 5 1 3 3 11 2 5 2 8 2 . 8 20 . 9 5 2 12 13 22 Fast Attach 92 | 7 1 . 5 . 7 . 4 5 2 . . . . 2 1 2 1 3 . . 6 13 . 5 3 . 7 10 8 Attach 124 | . 1 4 7 . 11 1 2 3 8 4 1 . 2 4 1 1 2 2 2 . 4 10 1 3 6 6 20 7 11 Detach 70 | . . . 3 . 11 . . 3 3 . . . 1 2 . 1 1 1 . . 1 5 . 1 6 5 16 4 6 Swap 508 | . 7 7 27 11 16 8 54 20 20 19 1 5 24 34 2 22 4 13 . 2 42 41 5 22 5 2 26 25 44 Drop 273 | . 7 . 38 6 61 . 12 9 13 4 . 2 2 10 1 2 1 9 . . 4 22 . 11 8 . 15 15 21 Fire 1501 | 3 49 25 77 17 66 20 64 64 12 41 4 18 31 80 1 60 2 54 . 4 79 117 9 90 21 15 108 84 286 Melee 37 | . . . 1 . 22 . . . 14 . . . . . . . . . . . . . . . . . . . . Ram . | . . . . . . . . . . . . . . . . . . . . . . . . . . . . . . Kick 19 | . . . . . . . . . . . . 1 4 . . . 1 . . . 4 . 1 1 1 . 2 . 4 Crush 31 | . 6 4 8 5 . 1 7 . . . . . . . . . . . . . . . . . . . . . . Escape Stasis 229 | . . . . . . . . 8 . 45 . 25 . 35 . 55 . 20 . . . 10 . 15 . . . 10 6 Rewire 157 | . . . . . . . . 84 . . . . . . . . . . . . . 25 . 48 . . . . . Trap 7 | . . . . . . . . . . . 7 . . . . . . . . . . . . . . . . . . Miscellaneous . | . . . . . . . . . . . . . . . . . . . . . . . . . . . . . . Route ------- -11/Scrapyard -10/Materials (discovered 6 exits: *Mat x3 / [*Min x2] / [*Sub]) -10/Mines (discovered 2 exits: *Mat x2) -9/Materials (discovered 5 exits: *Mat x3 / *Min x2) -9/Mines (discovered 3 exits: *Mat x2 / *Exi) -9/Exiles (discovered 2 exits: [*Min x2]) -8/Mines -8/Materials (discovered 5 exits: *Fac x3 / *Sto / Gar) -8/Garrison (discovered 4 exits: *Mat x4) -8/Materials -8/Garrison (discovered 2 exits: *Fac x2) -7/Factory (discovered 3 exits: Low x2 / Gar) -7/Garrison (discovered 3 exits: *Fac x3) -6/Factory -6/Garrison (discovered 3 exits: *Fac x3) -5/Factory -5/Garrison (discovered 3 exits: *Fac x3) -5/Factory (discovered 2 exits: [*Upp] / Gar) -5/Garrison (discovered 3 exits: *Fac x3) -4/Factory -4/Waste -4/Factory (discovered 2 exits: *Res / Gar) -4/Garrison (discovered 3 exits: *Fac x3) -4/Factory -4/Garrison (discovered 3 exits: *Res x3) -3/Research -2/Research (discovered 2 exits: *Tes x2) -2/Testing (discovered 2 exits: *Acc / Gar) -2/Garrison (discovered 3 exits: *Acc x3) -1/Access To Epsilon Eridani History --------- Turn | Location | Event 12 | -11/Scrapyard | Discovered new exit (range 15) 110 | -11/Scrapyard | Entered Materials 317 | -10/Materials | Build established: Mutant 380 | -10/Materials | Discovered new exit (range 8) 751 | -10/Materials | Discovered new exit (range 7) 984 | -10/Materials | Discovered new exit (range 9) 1087 | -10/Materials | Discovered new exit (range 14) 1256 | -10/Materials | Discovered new exit (range 13) 1594 | -10/Materials | Discovered new exit (range 16) 2307 | -10/Materials | Repaired Lgt. Treads 2439 | -10/Materials | Entered Mines 2439 | -10/Mines | Accompanied by 1 ally 2440 | -10/Mines | Assembled infested the area 2493 | -10/Mines | Learned location of Storage (-8) 3214 | -10/Mines | Discovered new exit (range 5) 3829 | -10/Mines | Learned location of Zion (-7) 4077 | -10/Mines | Discovered new exit (range 6) 4195 | -10/Mines | Assisted by bots powering up and referring to "LRC-V3" 4227 | -10/Mines | Learned Materials emergency access door positions 4431 | -10/Mines | Core integrity fell below 50% 4445 | -10/Mines | Core integrity fell below 20% 4462 | -10/Mines | Lost 3 allies 4473 | -10/Mines | Lost 4 parts (1p1n2u) 4835 | -10/Mines | Entered Materials 4835 | -9/Materials | Accompanied by 1 ally 4835 | -9/Materials | Evolved 2 slots: Utility x1, Weapon x1 5100 | -9/Materials | Discovered new exit (range 16) 5124 | -9/Materials | Build established: Tank 5436 | -9/Materials | Build established: Scavenger-Tank 6333 | -9/Materials | Build established: Tank 6835 | -9/Materials | Discovered new exit (range 8) 7408 | -9/Materials | Discovered new exit (range 10) 8309 | -9/Materials | Learned Storage emergency access door positions 8357 | -9/Materials | Learned location of Mines (-8) 8427 | -9/Materials | Learned Storage trap positions 8437 | -9/Materials | Discovered new exit (range 5) 8448 | -9/Materials | Learned Storage stockpile data 8476 | -9/Materials | Identified exit to Mines 8476 | -9/Materials | Learned location of 1 exit from Materials 8506 | -9/Materials | Learned Storage trap positions 8940 | -9/Materials | Repaired Hrd. Medium Armor Plating 8973 | -9/Materials | Repaired Imp. Treads 9013 | -9/Materials | Repaired Hrd. Medium Armor Plating 9495 | -9/Materials | Entered Mines 9564 | -9/Mines | Learned Materials terminal intel 9583 | -9/Mines | A weapon hastily lodged in a ceiling crevice suddenly fell to the ground 9941 | -9/Mines | Learned location of 1 exit from Proximity Caves 10123 | -9/Mines | Build established: Scavenger-Tank 10225 | -9/Mines | Discovered new exit (range 3) 10287 | -9/Mines | Deemed a non-threat by the Exiles lab entrance 10994 | -9/Mines | Discovered new exit (range 15) 11465 | -9/Mines | Met a Derelict shopkeep closing up shop 11777 | -9/Mines | Build established: Tank 11783 | -9/Mines | Discovered new exit (range 5) 11799 | -9/Mines | Entered Exiles 11841 | -9/Exiles | Discovered new exit (range 15) 11886 | -9/Exiles | Met 8R-AWN 11931 | -9/Exiles | Met EX-HEX 12017 | -9/Exiles | Met EX-BIN 12065 | -9/Exiles | Aligned with FarCom system 12068 | -9/Exiles | Given EX-Vault access code 12145 | -9/Exiles | Opened EX-Vault 12228 | -9/Exiles | Warned to stay clear of 0b10 Research branches 12425 | -9/Exiles | Found Potential Leg 12429 | -9/Exiles | Found Potential Leg 12580 | -9/Exiles | Met EX-DEC 12901 | -9/Exiles | Visited The Gauntlet 15369 | -9/Exiles | Attacked by the Exiles 15411 | -9/Exiles | Core integrity fell below 50% 15508 | -9/Exiles | Destroyed 8R-AWN 15530 | -9/Exiles | Found Prototype Device 15530 | -9/Exiles | Identified AS-neutralizer No. 17b 15542 | -9/Exiles | Found Prototype Processor 15546 | -9/Exiles | Found Prototype Ballistic Gun 15622 | -9/Exiles | Identified 8R-AWN's Boregun 15858 | -9/Exiles | Destroyed EX-BIN 15962 | -9/Exiles | Destroyed EX-DEC 16055 | -9/Exiles | Destroyed EX-HEX 16189 | -9/Exiles | Found Prototype Processor 16461 | -9/Exiles | Found Prototype Protection 16461 | -9/Exiles | Identified 8R-AWN's Armor/TH 17285 | -9/Exiles | Build established: Mutant 19610 | -9/Exiles | Discovered new exit (range 15) 21699 | -9/Exiles | Left Exiles lab with Potential Leg 21699 | -9/Exiles | Entered Mines 22005 | -8/Mines | Build established: Tank 22323 | -8/Mines | Core integrity fell below 20% 22516 | -8/Mines | Discovered new exit (range 9) 22619 | -8/Mines | Build established: Scavenger-Tank 22781 | -8/Mines | Entered Materials 22781 | -8/Materials | Evolved 2 slots: Propulsion x1, Utility x1 22782 | -8/Materials | Identified exit to Storage 22783 | -8/Materials | Identified exit to Factory 22784 | -8/Materials | Loaded intel: 12 terminal locations 23096 | -8/Materials | Identified Exp. Core Analyzer 23096 | -8/Materials | Identified Exp. Targeting Computer 23968 | -8/Materials | Repaired Hrd. Medium Armor Plating 24007 | -8/Materials | Repaired Hrd. Medium Armor Plating 24417 | -8/Materials | Discovered exit to Factory (range 10) 24704 | -8/Materials | Learned Storage stockpile data 24737 | -8/Materials | Learned Storage garrison access intel 24760 | -8/Materials | Learned Storage stockpile data 24771 | -8/Materials | Learned 8 Factory zone layouts 24780 | -8/Materials | Learned location of Extension (-5) 24781 | -8/Materials | Discovered exit to Factory (range 13) 24794 | -8/Materials | Learned 4 Recycling zone layouts 25156 | -8/Materials | Identified exit to Garrison 25156 | -8/Materials | Entered Garrison 25234 | -8/Garrison | Triggered checkpoint 25255 | -8/Garrison | Discovered new exit (range 5) 25317 | -8/Garrison | Triggered checkpoint 25334 | -8/Garrison | Build established: Tank 25340 | -8/Garrison | Triggered checkpoint 25375 | -8/Garrison | Destroyed 11 combat bots 25444 | -8/Garrison | Discovered new exit (range 11) 25484 | -8/Garrison | Triggered checkpoint 25506 | -8/Garrison | Garrison Relay disabled 25716 | -8/Garrison | Garrison Relay disabled 25755 | -8/Garrison | Triggered checkpoint 25812 | -8/Garrison | Discovered new exit (range 3) 25903 | -8/Garrison | Triggered checkpoint 25992 | -8/Garrison | Discovered new exit (range 10) 26352 | -8/Garrison | Triggered checkpoint 26386 | -8/Garrison | Build established: Commander-Tank 26390 | -8/Garrison | Installed Relay Interface Framework 26411 | -8/Garrison | Garrison Relay disabled 26439 | -8/Garrison | Triggered checkpoint 26798 | -8/Garrison | Entered Materials 26798 | -8/Materials | Accompanied by 6 allies 26899 | -8/Materials | Met 7R-MNS 26982 | -8/Materials | Identified exit to Garrison 27095 | -8/Materials | Attacked by 7R-MNS 27120 | -8/Materials | Core integrity fell below 50% 27143 | -8/Materials | Lost 4 allies 27148 | -8/Materials | 7R-MNS lamented failing the tripod run 27148 | -8/Materials | Destroyed 7R-MNS 27153 | -8/Materials | Found Prototype Protection 27153 | -8/Materials | Identified Centrium Heavy Armor Plating 27163 | -8/Materials | Found Prototype Device 27170 | -8/Materials | Found Prototype Leg 27170 | -8/Materials | Identified Tripod Weapons Platform 27172 | -8/Materials | Attached Tripod Weapons Platform, gained temporary slots: Weapon x2 27173 | -8/Materials | Lost 8 parts (2n5u1w) 27176 | -8/Materials | Found Prototype Device 27181 | -8/Materials | Identified Multitargeting Array 27186 | -8/Materials | Garrison activated, responded to threat 27246 | -8/Materials | Entered Garrison 27250 | -8/Garrison | Identified Thermal Barrier 27337 | -8/Garrison | Triggered checkpoint 27369 | -8/Garrison | Triggered checkpoint 27369 | -8/Garrison | Triggered checkpoint 27401 | -8/Garrison | Destroyed 9 combat bots 27426 | -8/Garrison | Build established: Scavenger-Gunner 27442 | -8/Garrison | Discovered exit to Factory (range 10) 27478 | -8/Garrison | Rescued a captive Derelict 27486 | -8/Garrison | Rescued a captive Derelict 27524 | -8/Garrison | Garrison Relay disabled 27664 | -8/Garrison | Discovered exit to Factory (range 12) 27698 | -8/Garrison | Triggered checkpoint 27743 | -8/Garrison | Garrison Relay disabled 27776 | -8/Garrison | Expanded RIF knowledge: Program Shield 27985 | -8/Garrison | Expanded RIF knowledge: Hotswap 28124 | -8/Garrison | Entered Factory 28124 | -7/Factory | Evolved 2 slots: Utility x2 28125 | -7/Factory | Identified exit to Lower Caves 28365 | -7/Factory | Identified exit to Garrison 28365 | -7/Factory | Entered Garrison 28431 | -7/Garrison | Triggered checkpoint 28489 | -7/Garrison | Discovered new exit (range 63) 28489 | -7/Garrison | Discovered new exit (range 83) 28489 | -7/Garrison | Discovered new exit (range 43) 28696 | -7/Garrison | Expanded RIF knowledge: Watcher Feeds 28819 | -7/Garrison | Triggered checkpoint 28858 | -7/Garrison | Garrison Relay disabled 28893 | -7/Garrison | Entered Factory 28893 | -6/Factory | Evolved 2 slots: Power x1, Propulsion x1 29549 | -6/Factory | Spotted B-75 Beast 29702 | -6/Factory | Identified exit to Garrison 29702 | -6/Factory | Entered Garrison 29760 | -6/Garrison | Triggered checkpoint 29797 | -6/Garrison | Garrison Relay disabled 29868 | -6/Garrison | Triggered checkpoint 29980 | -6/Garrison | Triggered checkpoint 29982 | -6/Garrison | Build established: Bothacker-Gunner 29991 | -6/Garrison | Triggered checkpoint 30086 | -6/Garrison | Triggered checkpoint 30155 | -6/Garrison | Triggered checkpoint 30247 | -6/Garrison | Discovered new exit (range 15) 30257 | -6/Garrison | Triggered checkpoint 30318 | -6/Garrison | Garrison Relay disabled 30501 | -6/Garrison | Spotted B-75 Beast 30501 | -6/Garrison | Spotted B-75 Beast 30536 | -6/Garrison | Triggered checkpoint 30612 | -6/Garrison | Triggered checkpoint 30729 | -6/Garrison | Expanded RIF knowledge: Signal Jamming 30816 | -6/Garrison | Discovered new exit (range 14) 30953 | -6/Garrison | Triggered checkpoint 30997 | -6/Garrison | Garrison Relay disabled 31028 | -6/Garrison | Discovered new exit (range 12) 31158 | -6/Garrison | Garrison Relay disabled 31279 | -6/Garrison | Garrison Relay disabled 31461 | -6/Garrison | Entered Factory 31461 | -5/Factory | Evolved 2 slots: Propulsion x1, Utility x1 31750 | -5/Factory | Identified exit to Garrison 31750 | -5/Factory | Entered Garrison 31787 | -5/Garrison | Expanded RIF knowledge: Zone Cloak 31884 | -5/Garrison | Triggered checkpoint 31959 | -5/Garrison | Spotted B-75 Beast 31989 | -5/Garrison | Destroyed B-75 Beast 32004 | -5/Garrison | Triggered checkpoint 32134 | -5/Garrison | Discovered new exit (range 13) 32302 | -5/Garrison | Triggered checkpoint 32433 | -5/Garrison | Triggered checkpoint 32459 | -5/Garrison | Garrison Relay disabled 32491 | -5/Garrison | Discovered new exit (range 8) 32748 | -5/Garrison | Triggered checkpoint 32761 | -5/Garrison | Discovered new exit (range 12) 32790 | -5/Garrison | Garrison Relay disabled 32849 | -5/Garrison | Spotted B-86 Titan 32849 | -5/Garrison | Spotted B-86 Titan 32857 | -5/Garrison | Entered Factory 32857 | -5/Factory | Accompanied by 1 ally 32926 | -5/Factory | Discovered new exit (range 12) 33157 | -5/Factory | First assault squad dispatched 33192 | -5/Factory | Identified exit to Garrison 33192 | -5/Factory | Entered Garrison 33290 | -5/Garrison | Garrison Relay disabled 33373 | -5/Garrison | Garrison Relay disabled 33480 | -5/Garrison | Triggered checkpoint 33679 | -5/Garrison | Discovered new exit (range 8) 33804 | -5/Garrison | Triggered checkpoint 33869 | -5/Garrison | Expanded RIF knowledge: Code Merge 33963 | -5/Garrison | Discovered new exit (range 10) 34040 | -5/Garrison | Triggered checkpoint 34123 | -5/Garrison | Discovered new exit (range 8) 34139 | -5/Garrison | Learned Factory security intel 34160 | -5/Garrison | Entered Factory 34160 | -4/Factory | Evolved 2 slots: Propulsion x1, Weapon x1 34239 | -4/Factory | Sucked down chute 34239 | -4/Factory | Entered Waste 34254 | -4/Waste | EMP discharged 34264 | -4/Waste | Spotted C-40 Crusher 34265 | -4/Waste | Spotted C-40 Crusher 34266 | -4/Waste | Spotted C-40 Crusher 34279 | -4/Waste | Spotted C-40 Crusher 34292 | -4/Waste | Spotted C-40 Crusher 34306 | -4/Waste | Discovered new exit (range 10) 34316 | -4/Waste | Entered Factory 34566 | -4/Factory | First assault squad dispatched 34926 | -4/Factory | Build established: Scavenger-Gunner 35061 | -4/Factory | Spotted B-86 Titan 35070 | -4/Factory | Destroyed B-86 Titan 35123 | -4/Factory | Cargo convoy interrupted 35182 | -4/Factory | Lost 3 allies 35200 | -4/Factory | Discovered new exit (range 15) 35363 | -4/Factory | Build established: Scavenger-Tank 35511 | -4/Factory | System corruption reached 10% 35528 | -4/Factory | Identified exit to Garrison 35528 | -4/Factory | Entered Garrison 35536 | -4/Garrison | Triggered checkpoint 35758 | -4/Garrison | Destroyed 8 combat bots 35771 | -4/Garrison | Triggered checkpoint 35803 | -4/Garrison | Garrison Relay disabled 36012 | -4/Garrison | Spotted B-86 Titan 36050 | -4/Garrison | Spotted B-86 Titan 36097 | -4/Garrison | Destroyed B-86 Titan 36143 | -4/Garrison | Triggered checkpoint 36369 | -4/Garrison | Triggered checkpoint 36481 | -4/Garrison | Discovered new exit (range 14) 36484 | -4/Garrison | Triggered checkpoint 36529 | -4/Garrison | Discovered new exit (range 5) 36715 | -4/Garrison | Triggered checkpoint 36752 | -4/Garrison | Garrison Relay disabled 36881 | -4/Garrison | Garrison Relay disabled 36884 | -4/Garrison | Triggered checkpoint 36908 | -4/Garrison | Discovered new exit (range 10) 36930 | -4/Garrison | Expanded RIF knowledge: Command Fork 37082 | -4/Garrison | Build established: Bothacker-Tank 37108 | -4/Garrison | Triggered checkpoint 37114 | -4/Garrison | Garrison Relay disabled 37142 | -4/Garrison | Garrison Relay disabled 37266 | -4/Garrison | Entered Factory 37266 | -4/Factory | Accompanied by 2 allies 37375 | -4/Factory | Identified exit to Garrison 37375 | -4/Factory | Entered Garrison 37375 | -4/Garrison | Accompanied by 2 allies 37410 | -4/Garrison | Garrison Relay disabled 37461 | -4/Garrison | Triggered checkpoint 37476 | -4/Garrison | Garrison Relay disabled 37687 | -4/Garrison | Destroyed 8 combat bots 37738 | -4/Garrison | Spotted B-86 Titan 37743 | -4/Garrison | Assimilated Titan 7a with formatsys_high 37751 | -4/Garrison | Triggered checkpoint 37759 | -4/Garrison | Triggered checkpoint 37797 | -4/Garrison | Triggered checkpoint 37844 | -4/Garrison | Discovered new exit (range 10) 37960 | -4/Garrison | Triggered checkpoint 38000 | -4/Garrison | Destroyed 8 combat bots 38034 | -4/Garrison | Build established: Scavenger-Tank 38039 | -4/Garrison | Garrison Relay disabled 38084 | -4/Garrison | Expanded RIF knowledge: Threat Obfuscation 38104 | -4/Garrison | Discovered new exit (range 15) 38220 | -4/Garrison | Discovered new exit (range 10) 38237 | -4/Garrison | Triggered checkpoint 38277 | -4/Garrison | Garrison Relay disabled 38376 | -4/Garrison | Build established: Botlord-Tank 38541 | -4/Garrison | Triggered checkpoint 38581 | -4/Garrison | Garrison Relay disabled 38662 | -4/Garrison | Triggered checkpoint 38684 | -4/Garrison | Triggered checkpoint 38704 | -4/Garrison | Garrison Relay disabled 38897 | -4/Garrison | Entered Research 38897 | -3/Research | Accompanied by 6 allies 38897 | -3/Research | Evolved 2 slots: Utility x1, Weapon x1 38905 | -3/Research | Found Fusion Bomb Launcher 38907 | -3/Research | Found Fusion Bomb Launcher 38999 | -3/Research | Discovered new exit (range 16) 39255 | -3/Research | Found Prototype Device 39255 | -3/Research | Identified Exp. Thermal Shield 39294 | -3/Research | P-80 Master assimilated allied Artificer 7c 39397 | -3/Research | First assault squad dispatched 39443 | -3/Research | Entered another Research area 39443 | -2/Research | Evolved 2 slots: Utility x2 39563 | -2/Research | Identified exit to Testing 39733 | -2/Research | Entered Testing 39733 | -2/Testing | Accompanied by 1 ally 39739 | -2/Testing | Spotted PD-MB63KM3KYZ 39804 | -2/Testing | Discovered new exit (range 16) 39877 | -2/Testing | Found Prototype Energy Cannon 39877 | -2/Testing | Identified Cld. Nova Cannon 39942 | -2/Testing | Spotted PY-8YNREK82F8 39972 | -2/Testing | Destroyed PY-8YNREK82F8 40160 | -2/Testing | Found Prototype Ballistic Gun 40160 | -2/Testing | Identified Hyp. Multirail 40203 | -2/Testing | Garrison activated, responded to threat 40268 | -2/Testing | Spotted Striker 40299 | -2/Testing | Found Thermal Barrier 40332 | -2/Testing | Destroyed Striker 40369 | -2/Testing | Found Prototype Hackware 40388 | -2/Testing | Found Prototype Device 40389 | -2/Testing | Identified AEGIS Remote Shield 40553 | -2/Testing | Spotted Striker 40587 | -2/Testing | Garrison activated, responded to threat 40757 | -2/Testing | Identified exit to Garrison 40757 | -2/Testing | Entered Garrison 40793 | -2/Garrison | Triggered checkpoint 40817 | -2/Garrison | Build established: Scavenger-Tank 40856 | -2/Garrison | Garrison Relay disabled 40922 | -2/Garrison | Spotted B-90 Cyclops 40964 | -2/Garrison | Assimilated Cyclops 9a with formatsys_high 41064 | -2/Garrison | Triggered checkpoint 41163 | -2/Garrison | Build established: Botlord-Tank 41190 | -2/Garrison | System corruption reached 10% 41237 | -2/Garrison | Triggered checkpoint 41269 | -2/Garrison | Discovered new exit (range 8) 41301 | -2/Garrison | Triggered checkpoint 41346 | -2/Garrison | Garrison Relay disabled 41676 | -2/Garrison | Triggered checkpoint 41727 | -2/Garrison | Destroyed 12 combat bots 41733 | -2/Garrison | Discovered new exit (range 10) 41879 | -2/Garrison | Triggered checkpoint 41923 | -2/Garrison | Expanded RIF knowledge: Code Merge 41956 | -2/Garrison | Discovered new exit (range 4) 41993 | -2/Garrison | Garrison Relay disabled 42016 | -2/Garrison | Entered Access 42016 | -1/Access | Evolved 2 slots: Power x1, Propulsion x1 42112 | -1/Access | Identified exit to Garrison 43011 | -1/Access | Identified Ghost Barrier 43014 | -1/Access | Destroyed 8 combat bots 43016 | -1/Access | First assault squad dispatched 43024 | -1/Access | Discovered new exit (range 3) 44262 | -1/Access | System corruption reached 10% 45080 | -1/Access | Destroyed 7 combat bots 45190 | -1/Access | High security lockdown imminent 45270 | -1/Access | High security lockdown engaged 45296 | -1/Access | Build established: Scavenger-Tank 45326 | -1/Access | Spotted Executioner 45335 | -1/Access | Destroyed Executioner 45362 | -1/Access | Destroyed 8 combat bots 45432 | -1/Access | Spotted Investigator 45433 | -1/Access | Scanned by Researcher 45442 | -1/Access | Destroyed Investigator 45490 | -1/Access | Destroyed 22 combat bots 45576 | -1/Access | Spotted Executioner 45576 | -1/Access | Spotted Striker 45581 | -1/Access | Destroyed Executioner 45594 | -1/Access | Destroyed Striker 45626 | -1/Access | Destroyed 12 combat bots 45715 | -1/Access | Spotted Striker 45722 | -1/Access | Destroyed Striker 45730 | -1/Access | Sterilization system engaged 45745 | -1/Access | Spotted Striker 45745 | -1/Access | Spotted Executioner 45745 | -1/Access | Spotted Executioner 45747 | -1/Access | Destroyed Executioner 45750 | -1/Access | Destroyed Executioner 45754 | -1/Access | Destroyed Striker 45796 | -1/Access | Destroyed 16 combat bots 46030 | -1/Access | Ambient heat levels rising (+10) 46180 | -1/Access | Ambient heat levels rising (+10) 46327 | -1/Access | Spotted B-99 Colossus 46330 | -1/Access | Ambient heat levels rising (+10) 46373 | -1/Access | Destroyed B-99 Colossus 46380 | -1/Access | Spotted B-99 Colossus 46396 | -1/Access | Destroyed B-99 Colossus 46480 | -1/Access | Ambient heat levels rising (+10) 46517 | *** | Escaped! Last Messages --------------- 46394_ Penetrated by Slug. 46396_ Slug penetrates B-99 Colossus. 46396_ B-99 Colossus destroyed. 46397_ System corrupted: Matter fused (-8). 46400_ Acquired 8 matter. 46402_ Acquired 6 matter. 46416_ System corrupted: FCS attempts to trigger Cld. Nova Cannon. 46416_ System corrupted: Cld. Nova Cannon misfires. 46416_ The unstable cave ceiling collapses. 46421_ Acquired 28 matter. 46431_ The unstable cave ceiling collapses. 46452_ D4FKN5GV